Workbook

Sheet Summary
B2: Academies Programme update
B3: June 2024
B4: This report details Oxfordshire schools that have converted to academy status and new schools that have opened since the beginning of the academies programme (2013), as well as those currently in progress. The report is updated each month and the most recent version can be found on the Academies Programme webpage at the link below:
B5: Academies update
B6: Please Note: New entries and updates/amendments from the previous month are highlighted in red.
B7: Tab name: | C7: Tab Information:
B8: Converted | C8: Schools that have converted, type of conversion (voluntary or sponsored), date of conversion, Trust details and change of Trust (rebrokering). All updates will appear at the top of the table and will be highlighted in red. See comments column for update reason.
B9: Converting | C9: Schools that have an academy order and are in the process of converting and those schools with an academy order where a date for conversion is delayed or not yet agreed.
B10: Consulting | C10: Schools that have advised the LA they are currently consulting on becoming an academy, schools that have submitted an Expression of Interest (EOI)to the DfE, and those that have submitted an application to convert to the DfE.
B11: New Schs since 2013 | C11: New schools that have opened since 2013 (start of academies programme) including any changes to trust (rebrokering)
B12: Approved new schools | C12: New schools that have Capital funding approval
B13: New Schools awaiting approval | C13: Proposed new schools that do not yet have Capital approval
B14: Maintained | C14: Schools that are currently maintained by the LA
B15: Halted Conversions | C15: Schools that have previously consulted on converting, but are taking no further action.
B16: Stats | C16: Total number of Schools by phase and type (ie Academy/Maintained) including percentages
B17: Lists | C17: Academy trusts and their company numbers and trusts that have been approved as sponsors.

Sheet Converted
A1: Name of converted establishment | B1: Previous name | C1: Phase | D1: Age range | E1: Company number | F1: DfE code | G1: Old DfE code | H1: Old company name and number | I1: Completion Date | J1: Acad year converted | K1: Type of Conversion - Voluntary or Sponsored | L1: Type of Trust | M1: Trust / sponsor details | N1: Schools in Sponsor Trusts | O1: Approved School Sponsor | P1: Additional Comments | Q1: Last updated
A2: Badgemore Community School | C2: Pri | D2: 4-11 | E2: 11031096 | F2: 2513 | I2: 2024-05-01 | J2: =IF(AND(I2>=39326,I2<=39691),"2007/08",IF(AND(I2>=39692,I2<=40056),"2008/09",IF(AND(I2>=40057,I2<=40421),"2009/10",IF(AND(I2>=40422,I2<=40786),"2010/11",IF(AND(I2>=40787,I2<=41152),"2011/12",IF(AND(I2>=41153,I2<=41517),"2012/13",IF(AND(I2>=41518,I2<=41882),"2013/14",IF(AND(I2>=41883,I2<=42247),"2014/15",IF(AND(I2>=42248,I2<=42613),"2015/16",IF(AND(I2>=42614,I2<=42978),"2016/17",IF(AND(I2>=42979,I2<=43343),"2017/18",IF(AND(I2>=43344,I2<=43708),"2018/19""date out of scope - rewrite formula")))))))))))) -> FALSE | K2: Voluntary Converter | L2: MAT | M2: The Circle Trust | N2: =IF(COUNTIF(SponsorTrusts,M2)=0,"","Y") ->  | Q2: 2024-05-01
A3: Carterton Primary School | C3: Pri | D3: 3-11 | E3: 08104201 | F3: 2044 | G3: 2252 | I3: 2024-04-01 | J3: =IF(AND(I3>=39326,I3<=39691),"2007/08",IF(AND(I3>=39692,I3<=40056),"2008/09",IF(AND(I3>=40057,I3<=40421),"2009/10",IF(AND(I3>=40422,I3<=40786),"2010/11",IF(AND(I3>=40787,I3<=41152),"2011/12",IF(AND(I3>=41153,I3<=41517),"2012/13",IF(AND(I3>=41518,I3<=41882),"2013/14",IF(AND(I3>=41883,I3<=42247),"2014/15",IF(AND(I3>=42248,I3<=42613),"2015/16",IF(AND(I3>=42614,I3<=42978),"2016/17",IF(AND(I3>=42979,I3<=43343),"2017/18",IF(AND(I3>=43344,I3<=43708),"2018/19""date out of scope - rewrite formula")))))))))))) -> FALSE | K3: Sponsored Academy brokered by DfE | L3: MAT | M3: Ridgeway Education Trust | N3: =IF(COUNTIF(SponsorTrusts,M3)=0,"","Y") -> Y | Q3: 2024-03-01
A4: St Francis CofE Primary School | C4: Pri | D4: 3-11 | E4: 08143249 | F4: 3253 | I4: 2024-04-01 | J4: =IF(AND(I4>=39326,I4<=39691),"2007/08",IF(AND(I4>=39692,I4<=40056),"2008/09",IF(AND(I4>=40057,I4<=40421),"2009/10",IF(AND(I4>=40422,I4<=40786),"2010/11",IF(AND(I4>=40787,I4<=41152),"2011/12",IF(AND(I4>=41153,I4<=41517),"2012/13",IF(AND(I4>=41518,I4<=41882),"2013/14",IF(AND(I4>=41883,I4<=42247),"2014/15",IF(AND(I4>=42248,I4<=42613),"2015/16",IF(AND(I4>=42614,I4<=42978),"2016/17",IF(AND(I4>=42979,I4<=43343),"2017/18",IF(AND(I4>=43344,I4<=43708),"2018/19""date out of scope - rewrite formula")))))))))))) -> FALSE | K4: Voluntary Converter | L4: MAT | M4: Oxford Diocesan Schools Trust | N4: =IF(COUNTIF(SponsorTrusts,M4)=0,"","Y") ->  | Q4: 2024-03-01
A5: Hagbourne CofE Primary School | C5: Pri | D5: 4-11 | E5: 08104201 | F5: 3249 | I5: 2024-04-01 | J5: =IF(AND(I5>=39326,I5<=39691),"2007/08",IF(AND(I5>=39692,I5<=40056),"2008/09",IF(AND(I5>=40057,I5<=40421),"2009/10",IF(AND(I5>=40422,I5<=40786),"2010/11",IF(AND(I5>=40787,I5<=41152),"2011/12",IF(AND(I5>=41153,I5<=41517),"2012/13",IF(AND(I5>=41518,I5<=41882),"2013/14",IF(AND(I5>=41883,I5<=42247),"2014/15",IF(AND(I5>=42248,I5<=42613),"2015/16",IF(AND(I5>=42614,I5<=42978),"2016/17",IF(AND(I5>=42979,I5<=43343),"2017/18",IF(AND(I5>=43344,I5<=43708),"2018/19""date out of scope - rewrite formula")))))))))))) -> FALSE | K5: Voluntary Converter | L5: MAT | M5: Ridgeway Education Trust | N5: =IF(COUNTIF(SponsorTrusts,M5)=0,"","Y") -> Y | Q5: 2024-03-01
A6: Glory Farm Primary School | C6: Pri | D6: 3-11 | E6: 09053713 | F6: 2211 | H6: Bernwode Schools Trust (09053713) | I6: 2014-07-01 | J6: =IF(AND(I6>=39326,I6<=39691),"2007/08",IF(AND(I6>=39692,I6<=40056),"2008/09",IF(AND(I6>=40057,I6<=40421),"2009/10",IF(AND(I6>=40422,I6<=40786),"2010/11",IF(AND(I6>=40787,I6<=41152),"2011/12",IF(AND(I6>=41153,I6<=41517),"2012/13",IF(AND(I6>=41518,I6<=41882),"2013/14",IF(AND(I6>=41883,I6<=42247),"2014/15",IF(AND(I6>=42248,I6<=42613),"2015/16",IF(AND(I6>=42614,I6<=42978),"2016/17",IF(AND(I6>=42979,I6<=43343),"2017/18",IF(AND(I6>=43344,I6<=43708),"2018/19""date out of scope - rewrite formula")))))))))))) -> 2013/14 | K6: Voluntary Converter | L6: MAT | M6: Acer Trust | N6: =IF(COUNTIF(SponsorTrusts,M6)=0,"","Y") ->  | O6: =IF(COUNTIF(ApprSchSonsors,A6)=0,"","Y") ->  | P6: Merged with Acer Trust 1/1/24. Previously Bicester Learning Academy- Changed name to Bernwode Schools Trust 1/12/2019 | Q6: 2024-02-01
A7: The Cooper School | C7: Sec | D7: 11-18 | E7: 09053713 | F7: 4032 | H7: Bernwode Schools Trust (09053713) | I7: 2014-07-01 | J7: 2013/14 | K7: Voluntary Converter | L7: MAT | M7: Acer Trust | O7: =IF(COUNTIF(ApprSchSonsors,A7)=0,"","Y") ->  | P7: Merged with Acer Trust 1/1/24. Previously Bicester Learning Academy- Changed name to Bernwode Schools Trust 1/12/2019 | Q7: 2024-02-01
A8: Cropredy CofE Primary | C8: Pri | D8: 4-11 | E8: 07939655 | F8: 2042 | G8: 3000 | I8: 2023-12-01 | J8: FALSE | K8: Sponsored Academy brokered by DfE | L8: MAT | M8: Eynsham Partnership Academy | Q8: 2023-12-01
A9: Fritwell CE Primary | C9: Pri | D9: 4-11 | E9: 07939655 | F9: 3065 | I9: 2023-11-01 | J9: FALSE | K9: Voluntary Converter | L9: MAT | M9: Eynsham Partnership Academy | Q9: 2023-11-01
A10: All Saints CofE (Aided) Primary | C10: Pri | D10: 3-11 | E10: 08104201 | F10: 3859 | I10: 2023-11-01 | J10: FALSE | K10: Voluntary Converter | L10: MAT | M10: Ridgeway Education Trust | N10: Y | Q10: 2023-11-01
A11: Long Wittenham CofE Primary | C11: Pri | D11: 4-11 | E11: 08104201 | F11: 3233 | I11: 2023-11-01 | J11: FALSE | K11: Sponsored Academy brokered by DfE | L11: MAT | M11: Ridgeway Education Trust | N11: Y | Q11: 2023-11-01
A12: Wootton-by-Woodstock CE (Aided) Primary | C12: Pri X | D12: 4-11 | E12: 08143249 | F12: 3657 | H12: Oxford Diocesan Schools Trust | I12: 2018-10-01 | J12: 2018/19 | K12: Voluntary Converter | L12: MAT | P12: The School has closed following consultation on 31st August 2023 | Q12: 2023-09-01
A13: Ashbury with Compton Beauchamp CE (VA) Primary | C13: Pri | D13: 4-11 | E13: 07977368 | F13: 3851 | I13: 2023-02-01 | J13: =IF(AND(I13>=39326,I13<=39691),"2007/08",IF(AND(I13>=39692,I13<=40056),"2008/09",IF(AND(I13>=40057,I13<=40421),"2009/10",IF(AND(I13>=40422,I13<=40786),"2010/11",IF(AND(I13>=40787,I13<=41152),"2011/12",IF(AND(I13>=41153,I13<=41517),"2012/13",IF(AND(I13>=41518,I13<=41882),"2013/14",IF(AND(I13>=41883,I13<=42247),"2014/15",IF(AND(I13>=42248,I13<=42613),"2015/16",IF(AND(I13>=42614,I13<=42978),"2016/17",IF(AND(I13>=42979,I13<=43343),"2017/18",IF(AND(I13>=43344,I13<=43708),"2018/19""date out of scope - rewrite formula")))))))))))) -> FALSE | K13: Voluntary Converter | L13: MAT | M13: Faringdon Learning Trust | Q13: 2023-02-01
A14: Bishopswood School | C14: Spec | D14: 2-19 | E14: 8340120 | F14: 7008 | G14: 7030 | I14: 2023-01-01 | J14: FALSE | K14: Sponsored Academy brokered by DfE | L14: MAT | M14: The Propeller Academy Trust | Q14: 2023-01-01
A15: St Laurence's CofE (A) Primary | C15: Pri | D15: 4-11 | E15: 08143249 | F15: 2039 | G15: 3760 | I15: 2022-10-01 | J15: FALSE | K15: Sponsored Academy brokered by DfE | L15: MAT | M15: Oxford Diocesan Schools Trust | Q15: 2022-10-01
A16: Folly View Primary School | B16: Faringdon Infant School | C16: Pri | D16: 2-11 | E16: 07977368 | F16: 2561 | I16: 2012-04-01 | J16: 2011/12 | K16: Voluntary Converter | L16: MAT | M16: Faringdon Learning Trust | O16: =IF(COUNTIF(ApprSchSonsors,A16)=0,"","Y") ->  | P16: name change Sep2022(Previously Faringdon Infant School, moving to brand new building in Oct 22) | Q16: 2022-09-01
A17: The Elms Primary School | B17: Faringdon Junior School | C17: Pri | D17: 3-11 | E17: 07977368 | F17: 2562 | I17: 2012-04-01 | J17: 2011/12 | K17: Voluntary Converter | L17: MAT | M17: Faringdon Learning Trust | P17: name change Sep2022 (previously Faringdon Junior School) | Q17: 2022-09-01
A18: Bayards Hill Primary School | C18: Pri | D18: 3-11 | E18: 8319810 | F18: 2015 | G18: 2521 | H18: Cheney School Academy trust | I18: 2014-10-01 | J18: 2014/15 | K18: Sponsored Academy brokered by DfE | L18: MAT | M18: River Learning Trust | P18: Previously part of Community Schools Alliance Trust (CSAT) which was Rebrokered to RLT 1st Feb 2022 | Q18: 2022-02-01
A19: Cheney Community College | C19: Sec | D19: 11-18 | E19: 8319810 | F19: 4120 | H19: Cheney School Academy trust | I19: 2013-01-01 | J19: 2012/13 | K19: Voluntary Converter | L19: MAT | M19: River Learning Trust | P19: Previously part of Community Schools Alliance Trust (CSAT) which was rebrokered to RLT on 1st Feb 22 | Q19: 2022-02-01
A20: The Bicester School | B20: Bicester Community College | C20: Sec | D20: 11-18 | E20: 0807909 | F20: 4011 | G20: 4030 | I20: 2015-08-01 | J20: 2014/15 | K20: Sponsored Academy brokered by DfE | L20: MAT | M20: Activate Learning Education Trust | P20: Merged with Bicester Technology Studio Feb 2021 | Q20: 2021-05-01
A21: Our Lady of Lourdes RC Primary, Witney | C21: Pri | D21: 4-11 | E21: 09113542 | F21: 3822 | H21: Dominic Barberi MAC 8453966 | I21: 2013-04-01 | J21: 2012/13 | K21: Voluntary Converter | L21: MAC | M21: The Pope Francis MAC | P21: Transferred to Pope Francis MAC on 1st Jan 2021 | Q21: 2021-01-01
A22: Our Lady's RC Primary School, Cowley | C22: Pri | D22: 4-11 | E22: 09113542 | F22: 3836 | H22: Dominic Barberi MAC 8453966 | I22: 2013-04-01 | J22: 2012/13 | K22: Voluntary Converter | L22: MAC | M22: The Pope Francis MAC | P22: transferred to Pope Francis MAC on 1st Jan 2021 | Q22: 2021-01-01
A23: St John Fisher RC Primary School, Littlemore | C23: Pri | D23: 3-11 | E23: 09113542 | F23: 3839 | H23: Dominic Barberi MAC 8453966 | I23: 2013-04-01 | J23: 2012/13 | K23: Voluntary Converter | L23: MAC | M23: The Pope Francis MAC | P23: transferred to Pope Francis MAC on 1st Jan 2021 | Q23: 2021-01-01
A24: St Joseph's RC Primary School, Thame | C24: Pri | D24: 4-11 | E24: 09113542 | F24: 3826 | H24: Dominic Barberi MAC 8453966 | I24: 2013-04-01 | J24: 2012/13 | K24: Voluntary Converter | L24: MAC | M24: The Pope Francis MAC | P24: transferred to Pope Francis MAC on 1st Jan 2021 | Q24: 2021-01-01
A25: St Thomas More Catholic Primary School | C25: Pri | D25: 3-11 | E25: 09113542 | F25: 3823 | H25: Dominic Barberi MAC 8453966 | I25: 2013-04-01 | J25: 2012/13 | K25: Voluntary Converter | L25: MAC | M25: The Pope Francis MAC | P25: transferred to Pope Francis MAC on 1st Jan 2021 | Q25: 2021-01-01
A26: St Gregory The Great | B26: St Gregory the Great Catholic School | C26: Sec | D26: 11-18 | E26: 09113542 | F26: 4014 | G26: 4145 | H26: Dominic Barberi MAC 8453966 | I26: 2013-04-01 | J26: 2012/13 | K26: Voluntary Converter | L26: MAC | M26: The Pope Francis MAC | P26: All through school de-amalgamated Nov 20. Secondary School transferred to Pope Francis MAC and St Frideswide CE Primary School was created as part of ODST - see new schools tab for further information | Q26: 2021-01-01
A27: Gosford Hill School | C27: Sec | D27: 11-18 | E27: 07966500 | F27: 4060 | H27: Gosford Hill School 08237106 | I27: 2012-11-01 | J27: 2012/13 | K27: Voluntary Converter | L27: Single converter | M27: River Learning Trust | P27: Previously Gosford Hill School Single Academy Trust | Q27: 2020-12-01
A28: Mabel Prichard School | C28: Spec | D28: 2-19 | E28: 8334718 | F28: 7020 | I28: 2020-11-01 | J28: FALSE | K28: Voluntary Converter | L28: MAT | M28: The Gallery Trust | Q28: 2020-11-01
A29: Buckland C of E Primary School | C29: Pri | D29: 3-11 | E29: 07977368 | F29: 3222 | I29: 2013-11-01 | J29: 2013/14 | K29: Voluntary Converter | L29: MAT | M29: Faringdon Learning Trust | O29: =IF(COUNTIF(ApprSchSonsors,A29)=0,"","Y") ->  | P29: name change Sep2020 (previously Faringdon Academy of Schools FAoS) | Q29: 2020-11-01
A30: John Blandy VC Primary School | C30: Pri | D30: 4-11 | E30: 07977368 | F30: 3230 | I30: 2013-11-01 | J30: 2013/14 | K30: Voluntary Converter | L30: MAT | M30: Faringdon Learning Trust | P30: name change Sep2020 (previously Faringdon Academy of Schools FAoS) | Q30: 2020-11-01
A31: Longcot & Fernham C of E Primary School | C31: Pri | D31: 4-11 | E31: 07977368 | F31: 3232 | I31: 2013-11-01 | J31: 2013/14 | K31: Voluntary Converter | L31: MAT | M31: Faringdon Learning Trust | P31: name change Sep2020 (previously Faringdon Academy of Schools FAoS) | Q31: 2020-11-01
A32: Shrivenham C of E Primary School | C32: Pri | D32: 4-11 | E32: 07977368 | F32: 3239 | I32: 2013-11-01 | J32: 2013/14 | K32: Voluntary Converter | L32: MAT | M32: Faringdon Learning Trust | P32: name change Sep2020 (previously Faringdon Academy of Schools FAoS) | Q32: 2020-11-01
A33: Watchfield Primary School | C33: Pri | D33: 3-11 | E33: 07977368 | F33: 2572 | I33: 2013-11-01 | J33: 2013/14 | K33: Voluntary Converter | L33: MAT | M33: Faringdon Learning Trust | P33: name change Sep2020 (previously Faringdon Academy of Schools FAoS) | Q33: 2020-11-01
A34: Faringdon Community College | C34: Sec | D34: 11-18 | E34: 07977368 | F34: 4141 | I34: 2012-04-01 | J34: 2011/12 | K34: Voluntary Converter | L34: MAT | M34: Faringdon Learning Trust | P34: name change Sep2020 (previously Faringdon Academy of Schools FAoS) | Q34: 2020-11-01
A35: The Oxford Academy | C35: Sec | D35: 11-18 | E35: 07966500 | F35: 4019 | G35: 6906 | H35: The Oxford Academy Trust 06621108 | I35: 2008-09-01 | J35: 2008/09 | K35: Sponsored Academy brokered by DfE | L35: MAT | M35: River Learning Trust | P35: Previously SAT - rebrokered to RLT 1st November 2020 | Q35: 2020-11-01
A36: St John's Catholic Primary | C36: Pri | D36: 4-11 | E36: 09113542 | F36: 2035 | G36: 3350 | I36: 2020-09-01 | J36: FALSE | K36: Sponsored Academy brokered by DfE | L36: MAC | M36: The Pope Francis MAC | Q36: 2020-09-01
A37: Springfield School | C37: Spec | D37: 2-19 | E37: 8334718 | F37: 7012 | I37: 2020-07-01 | J37: FALSE | K37: Voluntary Converter | L37: MAT | M37: The Gallery Trust | Q37: 2020-07-01
A38: St Joseph's RC Primary School, Carterton | C38: Pri | D38: 3-11 | E38: 09113542 | F38: 3556 | H38: Dominic Barberi MAC (8453966) | I38: 2013-04-01 | J38: 2012/13 | K38: Voluntary Converter | L38: MAC | M38: The Pope Francis MAC | N38: =IF(COUNTIF(SponsorTrusts,M38)=0,"","Y") ->  | O38: =IF(COUNTIF(ApprSchSonsors,A38)=0,"","Y") ->  | P38: Previously Dominic Barberi MAC rebrokered 1st April 2020 | Q38: 2020-04-01
A39: Botley School | C39: Pri | D39: 3-11 | E39: 09591931 | F39: 2032 | G39: 2569 | I39: 2020-03-01 | J39: 2019/20 | K39: Sponsored Academy brokered by DfE | L39: MAT | M39: Acer Trust | Q39: 2020-03-01
A40: Finmere CE School | C40: Pri | D40: 4-11 | E40: 9696059 | F40: 3090 | I40: 2020-03-01 | J40: 2019/20 | K40: Voluntary Converter | L40: MAT | M40: The Warriner Multi Academy Trust | N40: Y | Q40: 2020-03-01
A41: Northern House Special School | C41: Spec | D41: 2-19 | E41: 8334718 | F41: 5950 | G41: 7016 | H41: Northern House School Academy Trust (8140768) | I41: 2012-09-01 | J41: =IF(AND(I41>=39326,I41<=39691),"2007/08",IF(AND(I41>=39692,I41<=40056),"2008/09",IF(AND(I41>=40057,I41<=40421),"2009/10",IF(AND(I41>=40422,I41<=40786),"2010/11",IF(AND(I41>=40787,I41<=41152),"2011/12",IF(AND(I41>=41153,I41<=41517),"2012/13",IF(AND(I41>=41518,I41<=41882),"2013/14",IF(AND(I41>=41883,I41<=42247),"2014/15",IF(AND(I41>=42248,I41<=42613),"2015/16",IF(AND(I41>=42614,I41<=42978),"2016/17",IF(AND(I41>=42979,I41<=43343),"2017/18",IF(AND(I41>=43344,I41<=43708),"2018/19""date out of scope - rewrite formula")))))))))))) -> 2012/13 | K41: Voluntary Converter | L41: MAT | M41: The Gallery Trust | O41: =IF(COUNTIF(ApprSchSonsors,A41)=0,"","Y") ->  | P41: Previously Northern House School Academy Trust. Rebrokered to The Gallery Trust 1st Feb 2020. | Q41: 2020-03-01
A42: Christopher Rawlins CE VA School | C42: Pri | D42: 3-11 | E42: 08143249 | F42: 3453 | I42: 2020-02-01 | J42: 2019/20 | K42: Voluntary Converter | L42: MAT | M42: Oxford Diocesan Schools Trust | Q42: 2020-02-01
A43: Orion Academy | B43: Northfield School | C43: Spec | D43: 2-19 | E43: 8334718 | F43: 7004 | G43: 7031 | I43: 2020-02-01 | J43: 2019/20 | K43: Sponsored Academy brokered by DfE | L43: MAT | M43: The Gallery Trust | P43: Name changed to Orion Academy at conversion | Q43: 2020-02-01
A44: Meadowbrook College (PRU) | C44: Spec | D44: 2-19 | E44: 09334026 | F44: 1106 | I44: 2015-02-01 | J44: =IF(AND(I44>=39326,I44<=39691),"2007/08",IF(AND(I44>=39692,I44<=40056),"2008/09",IF(AND(I44>=40057,I44<=40421),"2009/10",IF(AND(I44>=40422,I44<=40786),"2010/11",IF(AND(I44>=40787,I44<=41152),"2011/12",IF(AND(I44>=41153,I44<=41517),"2012/13",IF(AND(I44>=41518,I44<=41882),"2013/14",IF(AND(I44>=41883,I44<=42247),"2014/15",IF(AND(I44>=42248,I44<=42613),"2015/16",IF(AND(I44>=42614,I44<=42978),"2016/17",IF(AND(I44>=42979,I44<=43343),"2017/18",IF(AND(I44>=43344,I44<=43708),"2018/19""date out of scope - rewrite formula")))))))))))) -> 2014/15 | K44: Voluntary Converter | L44: MAT | M44: Radcliffe Academy Trust | O44: =IF(COUNTIF(ApprSchSonsors,A44)=0,"","Y") ->  | P44: Rebrokering to Community Schools Alliance Trust - date TBC | Q44: 2020-02-01
A45: Blewbury Endowed CE Primary | C45: Pri | D45: 4-11 | E45: 08143249 | F45: 2031 | G45: 3248 | I45: 2019-12-01 | J45: 2019/20 | K45: Sponsored Academy brokered by DfE | L45: MAT | M45: Oxford Diocesan Schools Trust | Q45: 2019-12-01
A46: Charlbury Primary School | C46: Pri | D46: 4-11 | E46: 07966500 | F46: 2030 | G46: 2100 | I46: 2019-12-01 | J46: 2019/20 | K46: Sponsored Academy brokered by DfE | L46: MAT | M46: River Learning Trust | Q46: 2019-12-01
A47: Benson CofE School | C47: Pri | D47: 3-11 | E47: 08143249 | F47: 3181 | I47: 2019-10-01 | J47: 2019/20 | K47: Voluntary Converter | L47: MAT | M47: Oxford Diocesan Schools Trust
A48: Watlington Primary School | C48: Pri | D48: 3-11 | E48: 09591931 | F48: 2459 | I48: 2019-08-01 | J48: 2018/19 | K48: Voluntary Converter | L48: MAT | M48: Acer Trust
A49: Bardwell School | C49: Spec | D49: 11-19 | E49: 8334718 | F49: 7029 | I49: 2019-06-01 | J49: 2018/19 | K49: Voluntary Converter | L49: MAT | M49: The Gallery Trust
A50: Sutton Courtenay CofE Primary | C50: Pri | D50: 3-11 | E50: 08104201 | F50: 3243 | I50: 2019-04-01 | J50: 2018/19 | K50: Voluntary Converter | L50: MAT | M50: Ridgeway Education Trust | N50: Y | P50: Previously Didcot Academy of Schools
A51: Beckley CofE Primary | C51: Pri | D51: 4-11 | E51: 07966500 | F51: 3256 | I51: 2019-04-01 | J51: 2018/19 | K51: Voluntary Converter | L51: MAT | M51: River Learning Trust
A52: Stadhampton Primary | C52: Pri | D52: 4-11 | E52: 09591931 | F52: 2455 | I52: 2019-02-01 | J52: 2018/19 | K52: Voluntary Converter | L52: MAT | M52: Acer Trust
A53: Hardwick CP School | C53: Pri | D53: 4-11 | E53: 07551959 | F53: 2060 | I53: 2019-02-01 | J53: 2018/19 | K53: Voluntary Converter | L53: MAT | M53: GLF Schools
A54: Larkrise Primary School | C54: Pri | D54: 3-11 | E54: 07966500 | F54: 2027 | G54: 2543 | I54: 2019-02-01 | J54: 2018/19 | K54: Sponsored Academy brokered by DfE | L54: MAT | M54: River Learning Trust
A55: Fitzharrys School | C55: Sec | D55: 11-18 | E55: 07931886 | F55: 4127 | I55: 2018-11-01 | J55: 2018/19 | K55: Voluntary Converter | L55: MAT | M55: Abingdon Learning Trust (ALT)
A56: Middle Barton Primary | C56: Pri | D56: 4-11 | E56: 07966500 | F56: 2151 | I56: 2018-09-01 | J56: 2018/19 | K56: Voluntary Converter | L56: MAT | M56: River Learning Trust
A57: Rose Hill Primary | C57: Pri | D57: 3-11 | E57: 07966500 | F57: 2023 | G57: 2531 | I57: 2018-09-01 | J57: 2018/19 | K57: Sponsored Academy brokered by DfE | L57: MAT | M57: River Learning Trust
A58: Sandhills Primary | C58: Pri | D58: 3-11 | E58: 07966500 | F58: 2022 | G58: 2401 | I58: 2018-09-01 | J58: 2018/19 | K58: Sponsored Academy brokered by DfE | L58: MAT | M58: River Learning Trust
A59: Maiden Erlegh Chiltern Edge | B59: Chiltern Edge Community School | C59: Sec | D59: 11-16 | E59: 07548754 | F59: 4013 | G59: 4092 | I59: 2018-08-01 | J59: =IF(AND(I59>=39326,I59<=39691),"2007/08",IF(AND(I59>=39692,I59<=40056),"2008/09",IF(AND(I59>=40057,I59<=40421),"2009/10",IF(AND(I59>=40422,I59<=40786),"2010/11",IF(AND(I59>=40787,I59<=41152),"2011/12",IF(AND(I59>=41153,I59<=41517),"2012/13",IF(AND(I59>=41518,I59<=41882),"2013/14",IF(AND(I59>=41883,I59<=42247),"2014/15",IF(AND(I59>=42248,I59<=42613),"2015/16",IF(AND(I59>=42614,I59<=42978),"2016/17",IF(AND(I59>=42979,I59<=43343),"2017/18",IF(AND(I59>=43344,I59<=43708),"2018/19""date out of scope - rewrite formula")))))))))))) -> 2017/18 | K59: Sponsored Academy brokered by DfE | L59: MAT | M59: Maiden Erlegh Trust
A60: Fir Tree Jun School | C60: Jun | D60: 7-11 | E60: 08143249 | F60: 2578 | I60: 2018-04-01 | J60: 2017/18 | K60: Voluntary Converter | L60: MAT | M60: Oxford Diocesan Schools Trust
A61: St Nicholas' CE Inf School & Foundation Stage unit (Wallingford) | C61: Inf | D61: 3-6 | E61: 08143249 | F61: 3244 | I61: 2018-04-01 | J61: 2017/18 | K61: Voluntary Converter | L61: MAT | M61: Oxford Diocesan Schools Trust
A62: Madley Brook Community Primary | C62: Pri | D62: 3-11 | E62: 07966500 | F62: 2002 | I62: 2018-04-01 | J62: 2017/18 | K62: Voluntary Converter | L62: MAT | M62: River Learning Trust
A63: Witney Community Primary | C63: Pri | D63: 4-11 | E63: 07966500 | F63: 2302 | I63: 2018-04-01 | J63: 2017/18 | K63: Voluntary Converter | L63: MAT | M63: River Learning Trust
A64: Northbourne CofE Primary | C64: Pri | D64: 3-11 | E64: 08143249 | F64: 3852 | I64: 2018-01-01 | J64: 2017/18 | K64: Voluntary Converter | L64: MAT | M64: Oxford Diocesan Schools Trust
A65: St Mary's CE (VC) Primary (Banbury) | C65: Pri | D65: 3-11 | E65: 08143249 | F65: 3022 | I65: 2017-11-01 | J65: 2017/18 | K65: Voluntary Converter | L65: MAT | M65: Oxford Diocesan Schools Trust
A66: North Hinksey CofE Primary | C66: Pri | D66: 3-11 | E66: 08143249 | F66: 3237 | I66: 2017-10-01 | J66: 2017/18 | K66: Voluntary Converter | L66: MAT | M66: Oxford Diocesan Schools Trust
A67: Hill View Primary | C67: Pri | D67: 3-11 | E67: 04439859 | F67: 2056 | I67: 2017-10-01 | J67: 2017/18 | K67: Voluntary Converter | L67: MAT | M67: United Learning Trust (ULT)
A68: Brightwell-Cum-Sotwell CofE (C) School | C68: Pri | D68: 3-11 | E68: 07727786 | F68: 3221 | I68: 2017-09-01 | J68: 2017/18 | K68: Voluntary Converter | L68: MAT | M68: The Merchant Taylors Oxfordshire Academy Trust Ltd
A69: Kidmore End CE (Aided) Primary | C69: Pri | D69: 3-11 | E69: 08143249 | F69: 3807 | I69: 2017-08-01 | J69: 2016/17 | K69: Voluntary Converter | L69: MAT | M69: Oxford Diocesan Schools Trust
A70: Thameside Primary | C70: Pri | D70: 3-11 | E70: 07674473 | F70: 2598 | I70: 2017-08-01 | J70: 2016/17 | K70: Voluntary Converter | L70: MAT | M70: Vale Academy Trust | N70: =IF(COUNTIF(SponsorTrusts,M70)=0,"","Y") -> 
A71: Deddington CofE Primary | C71: Pri | D71: 4-11 | E71: 08143249 | F71: 3452 | I71: 2017-07-01 | J71: 2016/17 | K71: Voluntary Converter | L71: MAT | M71: Oxford Diocesan Schools Trust
A72: Dr Radcliffe's CofE School | C72: Pri | D72: 4-11 | E72: 08143249 | F72: 3828 | I72: 2017-06-01 | J72: 2016/17 | K72: Voluntary Converter | L72: MAT | M72: Oxford Diocesan Schools Trust
A73: South Moreton School | C73: Pri | D73: 4-11 | E73: 08143249 | F73: 2566 | I73: 2017-06-01 | J73: 2016/17 | K73: Voluntary Converter | L73: MAT | M73: Oxford Diocesan Schools Trust
A74: Bishop Loveday CofE Primary | C74: Pri | D74: 4-11 | E74: 9696059 | F74: 3351 | I74: 2017-06-01 | J74: 2016/17 | K74: Voluntary Converter | L74: MAT | M74: The Warriner Multi Academy Trust | N74: Y
A75: Garsington CE Primary | C75: Pri | D75: 3-11 | E75: 07966500 | F75: 3167 | I75: 2017-05-01 | J75: 2016/17 | K75: Voluntary Converter | L75: MAT | M75: River Learning Trust
A76: Horspath CofE Primary | C76: Pri | D76: 4-11 | E76: 07966500 | F76: 3161 | I76: 2017-05-01 | J76: 2016/17 | K76: Voluntary Converter | L76: MAT | M76: River Learning Trust
A77: West Kidlington Primary | C77: Pri | D77: 3-11 | E77: 08075785 | F77: 2021 | G77: 2110 | I77: 2017-05-01 | J77: 2016/17 | K77: Sponsored Academy brokered by DfE | L77: MAT | M77: The White Horse Federation
A78: Wroxton CE Primary School | C78: Pri | D78: 3-11 | E78: 08143249 | F78: 3004 | I78: 2017-04-01 | J78: 2016/17 | K78: Voluntary Converter | L78: MAT | M78: Oxford Diocesan Schools Trust
A79: Edith Moorhouse Primary | C79: Pri | D79: 4-11 | E79: 07966500 | F79: 2255 | I79: 2017-04-01 | J79: 2016/17 | K79: Voluntary Converter | L79: MAT | M79: River Learning Trust
A80: Chalgrove Community Primary | C80: Pri | D80: 3-11 | E80: 09591931 | F80: 2452 | I80: 2017-03-01 | J80: 2016/17 | K80: Voluntary Converter | L80: MAT | M80: Acer Trust
A81: Icknield Community College | C81: Sec | D81: 11-16 | E81: 09591931 | F81: 4082 | I81: 2017-02-01 | J81: 2016/17 | K81: Voluntary Converter | L81: MAT | M81: Acer Trust
A82: Wood Green School | C82: Sec | D82: 11-18 | E82: 09591931 | F82: 4052 | I82: 2017-02-01 | J82: 2016/17 | K82: Voluntary Converter | L82: MAT | M82: Acer Trust
A83: Leafield CofE Controlled Primary | C83: Pri | D83: 4-11 | E83: 08143249 | F83: 3124 | I83: 2017-02-01 | J83: 2016/17 | K83: Voluntary Converter | L83: MAT | M83: Oxford Diocesan Schools Trust
A84: New Marston Primary | C84: Pri | D84: 4-11 | E84: 07966500 | F84: 2020 | G84: 2529 | I84: 2017-02-01 | J84: 2016/17 | K84: Sponsored Academy brokered by DfE | L84: MAT | M84: River Learning Trust
A85: Dr South's CE VA Primary | C85: Pri | D85: 3-11 | E85: 08143249 | F85: 3655 | I85: 2017-01-01 | J85: 2016/17 | K85: Voluntary Converter | L85: MAT | M85: Oxford Diocesan Schools Trust
A86: Tackley CofE Primary | C86: Pri | D86: 4-11 | E86: 08143249 | F86: 3144 | I86: 2017-01-01 | J86: 2016/17 | K86: Voluntary Converter | L86: MAT | M86: Oxford Diocesan Schools Trust
A87: Larkmead School | C87: Sec | D87: 11-18 | E87: 07674473 | F87: 4125 | I87: 2017-01-01 | J87: 2016/17 | K87: Voluntary Converter | L87: MAT | M87: Vale Academy Trust
A88: Southwold Primary School | C88: Pri | D88: 3-11 | E88: 08075785 | F88: 2607 | I88: 2016-04-01 | J88: 2015/16 | K88: Voluntary converter | L88: MAT | M88: The White Horse Federation
A89: Brize Norton Primary School | C89: Pri | D89: 4-11 | E89: =LEFT(RIGHT(INDEX(CompanyNames_Numbers,MATCH(Converted[[#This Row],[Trust / sponsor details]]&"*",CompanyNames_Numbers,0)),9),8) -> 08143249 | F89: 2250 | I89: 2016-03-01 | J89: 2015/16 | K89: Voluntary Converter | L89: MAT | M89: Oxford Diocesan Schools Trust | O89: =IF(COUNTIF(ApprSchSonsors,A89)=0,"","Y") -> 
A90: St James, East Hanney | C90: Pri | D90: 4-11 | E90: 07674473 | F90: 3225 | I90: 2016-03-01 | J90: 2015/16 | K90: Voluntary Converter | L90: MAT | M90: Vale Academy Trust
A91: William Morris Primary School | C91: Pri | D91: 3-11 | E91: 07551959 | F91: 2019 | G91: 2059 | I91: 2016-02-01 | J91: =IF(AND(I91>=39326,I91<=39691),"2007/08",IF(AND(I91>=39692,I91<=40056),"2008/09",IF(AND(I91>=40057,I91<=40421),"2009/10",IF(AND(I91>=40422,I91<=40786),"2010/11",IF(AND(I91>=40787,I91<=41152),"2011/12",IF(AND(I91>=41153,I91<=41517),"2012/13",IF(AND(I91>=41518,I91<=41882),"2013/14",IF(AND(I91>=41883,I91<=42247),"2014/15",IF(AND(I91>=42248,I91<=42613),"2015/16",IF(AND(I91>=42614,I91<=42978),"2016/17",IF(AND(I91>=42979,I91<=43343),"2017/18",IF(AND(I91>=43344,I91<=43708),"2018/19""date out of scope - rewrite formula")))))))))))) -> 2015/16 | K91: Sponsored Academy brokered by DfE | L91: MAT | M91: GLF Schools
A92: St Mary's Infants, Witney | C92: Inf | D92: 4-11 | E92: 08143249 | F92: 3207 | I92: 2015-12-01 | J92: 2015/16 | K92: Voluntary Converter | L92: MAT | M92: Oxford Diocesan Schools Trust
A93: Tower Hill Primary | C93: Pri | D93: 3-11 | E93: 07966500 | F93: 2303 | I93: 2015-11-01 | J93: 2015/16 | K93: Voluntary Converter | L93: MAT | M93: River Learning Trust
A94: Wolvercote Primary | C94: Pri | D94: 3-11 | E94: 07966500 | F94: 2534 | I94: 2015-11-01 | J94: 2015/16 | K94: Voluntary Converter | L94: MAT | M94: River Learning Trust
A95: Burford Primary School | C95: Pri | D95: 3-11 | E95: 08143249 | F95: 2251 | I95: 2015-10-01 | J95: 2015/16 | K95: Voluntary Converter | L95: MAT | M95: Oxford Diocesan Schools Trust
A96: The Batt CE Primary School | C96: Pri | D96: 4-11 | E96: 08143249 | F96: 3605 | I96: 2015-10-01 | J96: 2015/16 | K96: Voluntary Converter | L96: MAT | M96: Oxford Diocesan Schools Trust
A97: Finstock Church of England Primary School | C97: Pri | D97: 3-11 | E97: 8060721 | F97: 3040 | I97: 2015-10-01 | J97: 2015/16 | K97: Voluntary Converter | L97: MAT | M97: The Mill Academy | N97: Y
A98: Queen Emma’s Primary School | B98: Queen's Dyke | C98: Pri | D98: 4-11 | E98: 8060721 | F98: 2304 | I98: 2015-10-01 | J98: 2015/16 | K98: Voluntary Converter | L98: MAT | M98: The Mill Academy | N98: Y
A99: Matthew Arnold School | C99: Sec | D99: 11-18 | E99: 09591931 | F99: 4128 | H99: West Oxford Schools Trust | I99: 2015-08-01 | J99: 2014/15 | K99: Voluntary Converter | L99: MAT | M99: Acer Trust
A100: Bishop Carpenter CofE (VA) | C100: Pri | D100: 4-11 | E100: 9696059 | F100: 3302 | I100: 2015-08-01 | J100: 2014/15 | K100: Voluntary Converter | L100: MAT | M100: The Warriner Multi Academy Trust | N100: Y
A101: Hornton Primary School | C101: Pri | D101: 2-11 | E101: 9696059 | F101: 2001 | I101: 2015-08-01 | J101: 2014/15 | K101: Voluntary Converter | L101: MAT | M101: The Warriner Multi Academy Trust | N101: Y
A102: Sibford Gower Endowed Primary School | C102: Pri | D102: 4-11 | E102: 9696059 | F102: 3005 | I102: 2015-08-01 | J102: 2014/15 | K102: Voluntary Converter | L102: MAT | M102: The Warriner Multi Academy Trust | N102: =IF(COUNTIF(SponsorTrusts,M102)=0,"","Y") -> Y
A103: The Warriner School | C103: Sec | D103: 11-18 | E103: 9696059 | F103: 4007 | I103: 2015-08-01 | J103: 2014/15 | K103: Voluntary Converter | L103: MAT | M103: The Warriner Multi Academy Trust | N103: Y
A104: Bampton CE Primary School | C104: Pri | D104: 2-11 | E104: 08143249 | F104: 3131 | I104: 2015-07-01 | J104: 2014/15 | K104: Voluntary Converter | L104: MAT | M104: Oxford Diocesan Schools Trust
A105: North Leigh CE Primary | C105: Pri | D105: 4-11 | E105: 08143249 | F105: 3128 | I105: 2015-07-01 | J105: 2014/15 | K105: Voluntary Converter | L105: MAT | M105: Oxford Diocesan Schools Trust
A106: St Christopher’s CofE Primary School, Langford | C106: Pri | D106: 4-11 | E106: 08143249 | F106: 3555 | I106: 2015-03-01 | J106: 2014/15 | K106: Voluntary Converter | L106: MAT | M106: Oxford Diocesan Schools Trust
A107: St Peter’s CE School, Alvescot | C107: Pri | D107: 4-6 | E107: 08143249 | F107: 3550 | I107: 2015-03-01 | J107: 2014/15 | K107: Voluntary Converter | L107: MAT | M107: Oxford Diocesan Schools Trust
A108: The Blake CE Primary School | C108: Pri | D108: 4-11 | E108: 08143249 | F108: 3600 | I108: 2015-03-01 | J108: 2014/15 | K108: Voluntary Converter | L108: MAT | M108: Oxford Diocesan Schools Trust
A109: Millbrook Primary School | C109: Pri | D109: 3-11 | E109: 07674473 | F109: 2016 | G109: 2603 | I109: 2014-12-01 | J109: 2014/15 | K109: Sponsored Academy brokered by DfE | L109: MAT | M109: Vale Academy Trust
A110: St Nicholas CE Primary School, East Challow | C110: Pri | D110: 4-11 | E110: 07674473 | F110: 3224 | I110: 2014-10-01 | J110: 2014/15 | K110: Voluntary Converter | L110: MAT | M110: Vale Academy Trust
A111: Blessed George Napier Catholic Secondary School | C111: Sec | D111: 11-18 | E111: 09113542 | F111: 4600 | I111: 2014-08-01 | J111: 2013/14 | K111: Voluntary Converter | L111: MAC | M111: The Pope Francis MAC
A112: Holy Trinity Catholic Primary School | C112: Pri | D112: 4-11 | E112: 09113542 | F112: 3420 | I112: 2014-08-01 | J112: 2013/14 | K112: Voluntary Converter | L112: MAC | M112: The Pope Francis MAC
A113: St Joseph's Catholic Primary School, Banbury | C113: Pri | D113: 3-11 | E113: 09113542 | F113: 3825 | I113: 2014-08-01 | J113: 2013/14 | K113: Voluntary Converter | L113: MAC | M113: The Pope Francis MAC
A114: Hanborough Manor C of E Primary School | C114: Pri | D114: 4-11 | E114: 07939655 | F114: 3147 | I114: 2014-07-01 | J114: 2013/14 | K114: Voluntary Converter | L114: MAT | M114: Eynsham Partnership Academy
A115: Freeland C of E Primary School | C115: Pri | D115: 4-11 | E115: 07939655 | F115: 3208 | I115: 2014-06-01 | J115: 2013/14 | K115: Voluntary Converter | L115: MAT | M115: Eynsham Partnership Academy
A116: St Peter's C of E Primary School, Cassington | C116: Pri | D116: 3-11 | E116: 07939655 | F116: 3651 | I116: 2014-06-01 | J116: 2013/14 | K116: Voluntary Converter | L116: MAT | M116: Eynsham Partnership Academy
A117: Standlake C of E Primary School | C117: Pri | D117: 3-11 | E117: 07939655 | F117: 3127 | I117: 2014-06-01 | J117: 2013/14 | K117: Voluntary Converter | L117: MAT | M117: Eynsham Partnership Academy
A118: Eynsham Primary School | C118: Pri | D118: 3-11 | E118: 07939655 | F118: 2013 | G118: 2209 | I118: 2014-05-01 | J118: 2013/14 | K118: Sponsored Academy brokered by DfE | L118: MAT | M118: Eynsham Partnership Academy
A119: Stanton Harcourt C of E Primary School | C119: Pri | D119: 3-11 | E119: 07939655 | F119: 3130 | I119: 2014-05-01 | J119: 2013/14 | K119: Voluntary Converter | L119: MAT | M119: Eynsham Partnership Academy
A120: Wheatley Park School | C120: Sec | D120: 11-18 | E120: 07966500 | F120: 4077 | H120: Wheatley Area Learning Trust 08979902 | I120: 2014-05-01 | J120: 2013/14 | K120: Voluntary Converter | L120: MAT | M120: River Learning Trust | N120: =IF(COUNTIF(SponsorTrusts,P120)=0,"","Y") ->  | P120: Formally Wheatley Area Learning Trust Rebrokered July 2016
A121: Wheatley CE Primary School | C121: Pri | D121: 4-11 | E121: 08143249 | F121: 2009 | G121: 3165 | I121: 2014-03-01 | J121: 2013/14 | K121: Sponsored Academy brokered by DfE | L121: MAT | M121: Oxford Diocesan Schools Trust | N121: =IF(COUNTIF(SponsorTrusts,M121)=0,"","Y") ->  | O121: =IF(COUNTIF(ApprSchSonsors,A121)=0,"","Y") -> 
A122: John Mason Secondary School | C122: Sec | D122: 11-18 | E122: 07937886 | F122: 4126 | H122: John Mason Academy Trust | I122: 2014-02-01 | J122: 2013/14 | K122: Voluntary Converter | L122: MAT | M122: Abingdon Learning Trust (ALT) | P122: Formally John Mason Academy Trust
A123: St Christopher's CE Primary School, Cowley | C123: Pri | D123: 3-11 | E123: 08143249 | F123: 2010 | G123: 3252 | I123: 2014-02-01 | J123: =IF(AND(I123>=39326,I123<=39691),"2007/08",IF(AND(I123>=39692,I123<=40056),"2008/09",IF(AND(I123>=40057,I123<=40421),"2009/10",IF(AND(I123>=40422,I123<=40786),"2010/11",IF(AND(I123>=40787,I123<=41152),"2011/12",IF(AND(I123>=41153,I123<=41517),"2012/13",IF(AND(I123>=41518,I123<=41882),"2013/14",IF(AND(I123>=41883,I123<=42247),"2014/15",IF(AND(I123>=42248,I123<=42613),"2015/16",IF(AND(I123>=42614,I123<=42978),"2016/17",IF(AND(I123>=42979,I123<=43343),"2017/18",IF(AND(I123>=43344,I123<=43708),"2018/19""date out of scope - rewrite formula")))))))))))) -> 2013/14 | K123: Voluntary Converter | L123: MAT | M123: Oxford Diocesan Schools Trust
A124: Grove CE Primary School | C124: Pri | D124: 4-11 | E124: 08143249 | F124: 3228 | I124: 2013-12-01 | J124: 2013/14 | K124: Voluntary Converter | L124: MAT | M124: Oxford Diocesan Schools Trust
A125: The Hendreds CE Primary School, Wantage | C125: Pri | D125: 4-11 | E125: 08143249 | F125: 3250 | I125: 2013-12-01 | J125: 2013/14 | K125: Voluntary Converter | L125: MAT | M125: Oxford Diocesan Schools Trust
A126: Cholsey Primary School | C126: Pri | D126: 4-11 | E126: 08722647 | F126: 2596 | I126: 2013-11-01 | J126: 2013/14 | K126: Voluntary Converter | L126: Umbrella Trust | M126: Oxfordshire Primary Education Network (OPEN)
A127: Charlton Primary School | C127: Pri | D127: 4-11 | E127: 07674473 | F127: 2573 | I127: 2013-10-01 | J127: 2013/14 | K127: Voluntary Converter | L127: MAT | M127: Vale Academy Trust
A128: Wantage C of E Primary School | C128: Pri | D128: 3-11 | E128: 07674473 | F128: 3246 | I128: 2013-10-01 | J128: 2013/14 | K128: Voluntary Converter | L128: MAT | M128: Vale Academy Trust
A129: Abbey Woods Academy | B129: Berinsfield Community Primary School | C129: Pri | D129: 3-11 | E129: 07468210 | F129: 2007 | G129: 2461 | I129: 2013-09-01 | J129: 2013/14 | K129: Sponsored Academy brokered by DfE | L129: MAT | M129: Anthem Schools Trust | P129: Previously CfBT Schools Trust
A130: Orchard Meadow Primary School | C130: Pri | D130: 3-11 | E130: 04439859 | F130: 2024 | G130: 2006 2539 | H130: Blackbird Academy Trust - 08544741 | I130: 2013-08-01 | J130: 2012/13 | K130: Sponsored Academy brokered by DfE | L130: MAT | M130: United Learning Trust (ULT) | P130: Sponsored by the Dragon School. Blackbird Academy Trust joined United Learning 1/9/18 (DFE No. changed)
A131: Pegasus Primary School | C131: Pri | D131: 3-11 | E131: 04439859 | F131: 2593 | H131: Blackbird Academy Trust - 08544741 | I131: 2013-08-01 | J131: 2012/13 | K131: Voluntary Converter | L131: MAT | M131: United Learning Trust (ULT) | P131: Blackbird Academy Trust joined United Learning 1/9/18
A132: Windale Community Primary School | C132: Pri | D132: 3-11 | E132: 04439859 | F132: 2025 | G132: 2005 2606 | H132: Blackbird Academy Trust - 08544741 | I132: 2013-08-01 | J132: 2012/13 | K132: Sponsored Academy brokered by DfE | L132: MAT | M132: United Learning Trust (ULT) | P132: Sponsored by the Dragon School. Blackbird Academy Trust joined United Learning 1/9/18 (DFE No. changed)
A133: Manor School, Didcot | C133: Pri | D133: 4-11 | E133: 07551959 | F133: 2028 | G133: 2597 | H133: O.P.E.N. 08516551 | I133: 2013-06-01 | J133: 2012/13 | K133: Voluntary Converter | L133: MAT | M133: GLF Schools | P133: Transferred from O.P.E.N. to GLF Schools 1st May 2019. (DfE No. Changed)
A134: Ladygrove Park Primary School | C134: Pri | D134: 3-11 | E134: 08517429 | F134: 2609 | I134: 2013-06-01 | J134: 2012/13 | K134: Voluntary Converter | L134: Umbrella Trust | M134: Oxfordshire Primary Education Network (OPEN)
A135: St Johns Primary School, Wallingford | C135: Pri | D135: 4-11 | E135: 008517255 | F135: 2567 | I135: 2013-06-01 | J135: 2012/13 | K135: Voluntary Converter | L135: Umbrella Trust | M135: Oxfordshire Primary Education Network (OPEN)
A136: Willowcroft Community Primary School | C136: Pri | D136: 3-11 | E136: 08516562 | F136: 3912 | I136: 2013-06-01 | J136: 2012/13 | K136: Voluntary Converter | L136: Umbrella Trust | M136: Oxfordshire Primary Education Network (OPEN)
A137: Cutteslowe Primary School | C137: Pri | D137: 3-11 | E137: 07966500 | F137: 2004 | G137: 2522 | H137: The Cherwell School Academy Trust (7966500) | I137: 2013-04-01 | J137: 2012/13 | K137: Sponsored Academy brokered by DfE | L137: MAT | M137: River Learning Trust
A138: Harriers Banbury Academy | B138: Harriers Ground Community Primary Sch | C138: Pri | D138: 3-11 | E138: 7867577 | F138: 2053 | I138: 2013-02-01 | J138: 2012/13 | K138: Voluntary Converter | L138: MAT | M138: Aspirations Academy Trust (AAT)
A139: Iffley Academy | B139: Iffley Mead Special School, Isis Academy | C139: Spec | D139: 2-19 | E139: 8334718 | F139: 7018 | I139: 2013-02-01 | J139: 2012/13 | K139: Voluntary Converter | L139: MAT | M139: The Gallery Trust | P139: Previously The Iffley Academy Trust
A140: Fitzwaryn Special School | C140: Spec | D140: 2-19 | E140: 8340120 | F140: 7027 | I140: 2013-02-01 | J140: 2012/13 | K140: Voluntary Converter | L140: MAT | M140: The Propeller Academy Trust
A141: Kingfisher Special School | C141: Spec | D141: 2-19 | E141: 8340120 | F141: 7000 | G141: 7032 | I141: 2013-02-01 | J141: 2012/13 | K141: Sponsored Academy brokered by DfE | L141: MAT | M141: The Propeller Academy Trust | P141: Trust: Kingfisher and Fitzwaryn special schs with Abingdon and Witney College
A142: The Marlborough C of E School | C142: Sec | D142: 11-18 | E142: 07966500 | F142: 4560 | H142: The Marlborough C of E School 8194349 | I142: 2012-10-01 | J142: 2012/13 | K142: Voluntary Converter | L142: MAT | M142: River Learning Trust | P142: Previously the Marlborough Church of England School (Joined RLT April 2018)
A143: The John Henry Newman CE School | C143: Pri | D143: 3-11 | E143: 08143249 | F143: 2000 | G143: 2612 | I143: 2012-09-01 | J143: 2012/13 | K143: Sponsored Academy brokered by DfE | L143: MAT | M143: Oxford Diocesan Schools Trust
A144: St Birinus School, Didcot | C144: Sec | D144: 11-18 | E144: 8104201 | F144: 4129 | I144: 2012-09-01 | J144: 2012/13 | K144: Voluntary Converter | L144: MAT | M144: Ridgeway Education Trust | N144: Y | P144: Previously Didcot Academy of Schools
A145: Lord Williams's School | C145: Sec | D145: 11-18 | E145: 8154932 | F145: 4580 | I145: 2012-09-01 | J145: 2012/13 | K145: Voluntary Converter | L145: MAT | M145: Thame Partnership Academy Trust
A146: Dashwood Banbury Academy | B146: Dashwood Primary School | C146: Pri | D146: 3-11 | E146: 7867577 | F146: 2003 | G146: 2592 | I146: 2012-08-01 | J146: 2011/12 | K146: Voluntary Converter | L146: MAT | M146: Aspirations Academy Trust (AAT)
A147: Wykham Park Academy | B147: Banbury School then Banbury Academy | C147: Sec | D147: 11-18 | E147: 7867577 | F147: 4000 | G147: 4021 | I147: 2012-08-01 | J147: 2011/12 | K147: Voluntary Converter | L147: MAT | M147: Aspirations Academy Trust (AAT)
A148: Didcot Girls' School | C148: Sec | D148: 11-18 | E148: 8104201 | F148: 4139 | I148: 2012-08-01 | J148: 2011/12 | K148: Voluntary Converter | L148: MAT | M148: Ridgeway Education Trust | N148: Y | P148: Previously Didcot Academy of Schools
A149: Burford Secondary School | C149: Sec | D149: 11-18 | E149: 8082185 | F149: 4040 | I149: 2012-07-01 | J149: 2011/12 | K149: Voluntary Converter | L149: Single converter | M149: Burford School
A150: The Henry Box School | C150: Sec | D150: 11-18 | E150: 8060721 | F150: 4050 | H150: The Henry Box School (8060721) | I150: 2012-06-01 | J150: 2011/12 | K150: Voluntary Converter | L150: MAT | M150: The Mill Academy | N150: Y
A151: The Cherwell School | C151: Sec | D151: 11-18 | E151: 07966500 | F151: 4116 | H151: The Cherwell School Academy Trust (7966500) | I151: 2012-04-01 | J151: 2011/12 | K151: Voluntary Converter | L151: MAT | M151: River Learning Trust
A152: Langtree School | C152: Sec | D152: 11-16 | E152: 07980335 | F152: 4094 | I152: 2012-04-01 | J152: 2011/12 | K152: Voluntary Converter | L152: Single converter | M152: The Langtree School Academy Trust
A153: Rush Common School | C153: Pri | D153: 4-11 | E153: 07931886 | F153: 2574 | H153: Rush Common Academy Trust (07931886) | I153: 2012-03-01 | J153: 2011/12 | K153: Voluntary Converter | L153: MAT | M153: Abingdon Learning Trust (ALT) | O153: =IF(COUNTIF(ApprSchSonsors,A153)=0,"","Y") ->  | P153: Formally Rush Common Single Academy Trust
A154: Bartholomew School | C154: Sec | D154: 11-18 | E154: 07939655 | F154: 4054 | I154: 2012-03-01 | J154: 2011/12 | K154: Voluntary Converter | L154: MAT | M154: Eynsham Partnership Academy
A155: Gillotts School | C155: Sec | D155: 11-16 | E155: 07954417 | F155: 4055 | I155: 2012-03-01 | J155: =IF(AND(I155>=39326,I155<=39691),"2007/08",IF(AND(I155>=39692,I155<=40056),"2008/09",IF(AND(I155>=40057,I155<=40421),"2009/10",IF(AND(I155>=40422,I155<=40786),"2010/11",IF(AND(I155>=40787,I155<=41152),"2011/12",IF(AND(I155>=41153,I155<=41517),"2012/13",IF(AND(I155>=41518,I155<=41882),"2013/14",IF(AND(I155>=41883,I155<=42247),"2014/15",IF(AND(I155>=42248,I155<=42613),"2015/16",IF(AND(I155>=42614,I155<=42978),"2016/17",IF(AND(I155>=42979,I155<=43343),"2017/18",IF(AND(I155>=43344,I155<=43708),"2018/19""date out of scope - rewrite formula")))))))))))) -> 2011/12 | K155: Voluntary Converter | L155: Single converter | M155: Gillots School
A156: Chipping Norton School | C156: Sec | D156: 11-18 | E156: 07966500 | F156: 4010 | H156: Chipping Norton School Academy Trust (07929429) | I156: 2012-03-01 | J156: 2011/12 | K156: Voluntary Converter | L156: MAT | M156: River Learning Trust | P156: Formally Chipping Norton School Academy Trust (Joined RLT March 2017)
A157: Hanwell Fields Community School | C157: Pri | D157: 3-11 | E157: 04439859 | F157: 3837 | I157: 2012-03-01 | J157: 2011/12 | K157: Voluntary Converter | L157: MAT | M157: United Learning Trust (ULT)
A158: Wallingford School | C158: Sec | D158: 11-18 | E158: 07727786 | F158: 4140 | H158: Wallingford Schools Academy Trust | I158: 2011-09-01 | J158: 2011/12 | K158: Voluntary Converter | L158: MAT | M158: The Merchant Taylors Oxfordshire Academy Trust Ltd | P158: Previously Wallingford Schools Academy Trust
A159: King Alfred's Academy | B159: King Alfred's Community & Sports College | C159: Sec | D159: 11-18 | E159: 07674473 | F159: 4142 | I159: 2011-08-01 | J159: 2010/11 | K159: Voluntary Converter | L159: MAT | M159: Vale Academy Trust
A160: Oxford Spires Academy | B160: Oxford School | C160: Sec | D160: 11-18 | E160: 07468210 | F160: 6907 | I160: 2011-01-01 | J160: 2010/11 | K160: Sponsored Academy brokered by DfE | L160: MAT | M160: Anthem Schools Trust | P160: Previously CfBT Schools Trust
A161: North Oxfordshire Academy | C161: Sec | D161: 11-18 | E161: 04439859 | F161: 6905 | I161: 2007-09-01 | J161: 2007/08 | K161: Sponsored Academy brokered by DfE | L161: MAT | M161: United Learning Trust (ULT)
C163: =SUBTOTAL(3,A2:A161) -> 160
A164: SHOWS CONVERTER SCHOOLS ONLY:
A165: Type of Trust | B165: (All) | E165: SHOWS NEW SCHOOLS ONLY:
E166: New School stats (NOT including schools that have converted to academy status)
A167: Row Labels | B167: Count of Schools in Sponsor Trusts | E167: Trust / sponsor | F167: No schs
A168: Abingdon Learning Trust (ALT) | B168: 3 | E168: Activate Learning Education Trust | F168: 1
A169: Acer Trust | B169: 9 | E169: Aspirations Academy Trust (AAT) | F169: 1
A170: Activate Learning Education Trust | B170: 1 | E170: Europa School Trust | F170: 1
A171: Anthem Schools Trust | B171: 2 | E171: Eynsham Partnership Academy | F171: 1
A172: Aspirations Academy Trust (AAT) | B172: 3 | E172: GLF Schools | F172: 4
A173: Burford School | B173: 1 | E173: MacIntyre Academy Trust | F173: 1
A174: Eynsham Partnership Academy | B174: 9 | E174: Omnia Learning Trust | F174: 3
A175: Faringdon Learning Trust | B175: 9 | E175: Oxford Diocesan Schools Trust | F175: 2
A176: Gillots School | B176: 1 | E176: River Learning Trust | F176: 3
A177: GLF Schools | B177: 3 | E177: The Gallery Trust | F177: 1
A178: Maiden Erlegh Trust | B178: 1 | E178: The Warriner MAT | F178: 1
A179: Oxford Diocesan Schools Trust | B179: 32 | E179: The White Horse Federation | F179: 2
A180: Oxfordshire Primary Education Network (OPEN) | B180: 4 | E180: Vale Academy Trust | F180: 1
A181: Radcliffe Academy Trust | B181: 1 | E181: Grand Total | F181: 22
A182: Ridgeway Education Trust | B182: 7
A183: River Learning Trust | B183: 23 | E183: Abingdon Learning Trust | F183: =GETPIVOTDATA("Schools in Sponsor Trusts",$A$167,"Trust / sponsor details","Abingdon Learning Trust (ALT)") -> 3 | G183: =IF(IFERROR(VLOOKUP(E184,$A$167:$B$203,2,FALSE),0)+IFERROR(VLOOKUP(E184,$E$167:$F$176,2,FALSE),0)=VLOOKUP(E184,$E$180:$F$222,2,FALSE),"OK","Error") -> OK
A184: Thame Partnership Academy Trust | B184: 1 | E184: Acer Trust | F184: =GETPIVOTDATA("Schools in Sponsor Trusts",$A$167,"Trust / sponsor details","Acer Trust") -> 9 | G184: =IF(IFERROR(VLOOKUP(E185,$A$167:$B$203,2,FALSE),0)+IFERROR(VLOOKUP(E185,$E$167:$F$176,2,FALSE),0)=VLOOKUP(E185,$E$180:$F$222,2,FALSE),"OK","Error") -> OK
A185: The Circle Trust | B185: 1 | E185: Activate Learning Education Trust | F185: =GETPIVOTDATA("Schools in Sponsor Trusts",$A$167,"Trust / sponsor details","Activate Learning Education Trust")+GETPIVOTDATA("Trust name / sponsor",$E$167,"Trust name / sponsor","Activate Learning Education Trust") -> 2 | G185: =IF(IFERROR(VLOOKUP(E186,$A$167:$B$203,2,FALSE),0)+IFERROR(VLOOKUP(E186,$E$167:$F$176,2,FALSE),0)=VLOOKUP(E186,$E$180:$F$222,2,FALSE),"OK","Error") -> OK
A186: The Gallery Trust | B186: 6 | E186: Aspirations Academy Trust (AAT) | F186: =GETPIVOTDATA("Schools in Sponsor Trusts",$A$167,"Trust / sponsor details","Aspirations Academy Trust (AAT)")+GETPIVOTDATA("Trust name / sponsor",$E$167,"Trust name / sponsor","Aspirations Academy Trust (AAT)") -> 4 | G186: =IF(IFERROR(VLOOKUP(E186,$A$167:$B$203,2,FALSE),0)+IFERROR(VLOOKUP(E186,$E$167:$F$176,2,FALSE),0)=VLOOKUP(E186,$E$180:$F$222,2,FALSE),"OK","Error") -> OK
A187: The Langtree School Academy Trust | B187: 1 | E187: Burford School | F187: =GETPIVOTDATA("Schools in Sponsor Trusts",$A$167,"Trust / sponsor details","Burford School") -> 1 | G187: =IF(IFERROR(VLOOKUP(E188,$A$167:$B$203,2,FALSE),0)+IFERROR(VLOOKUP(E188,$E$167:$F$179,2,FALSE),0)=VLOOKUP(E188,$E$180:$F$222,2,FALSE),"OK","Error") -> OK
A188: The Merchant Taylors Oxfordshire Academy Trust Ltd | B188: 2 | E188: Anthem Schools Trust | F188: =GETPIVOTDATA("Schools in Sponsor Trusts",$A$167,"Trust / sponsor details","Anthem Schools Trust") -> 2 | G188: =IF(IFERROR(VLOOKUP(E189,$A$167:$B$203,2,FALSE),0)+IFERROR(VLOOKUP(E189,$E$167:$F$179,2,FALSE),0)=VLOOKUP(E189,$E$180:$F$222,2,FALSE),"OK","Error") -> OK
A189: The Mill Academy | B189: 3 | E189: Europa School Trust | F189: =GETPIVOTDATA("Trust name / sponsor",$E$167,"Trust name / sponsor","Europa School Trust") -> 1 | G189: =IF(IFERROR(VLOOKUP(E190,$A$167:$B$203,2,FALSE),0)+IFERROR(VLOOKUP(E190,$E$167:$F$176,2,FALSE),0)=VLOOKUP(E190,$E$180:$F$222,2,FALSE),"OK","Error") -> OK
A190: The Pope Francis MAC | B190: 11 | E190: Eynsham Partnership Academy | F190: =GETPIVOTDATA("Schools in Sponsor Trusts",$A$167,"Trust / sponsor details","Eynsham Partnership Academy")+GETPIVOTDATA("Trust name / sponsor",$E$176,"Trust name / sponsor","Eynsham Partnership Academy") -> 10 | G190: =IF(IFERROR(VLOOKUP(E190,$A$167:$B$199,2,FALSE),0)+IFERROR(VLOOKUP(E190,$E$167:$F$179,2,FALSE),0)=VLOOKUP(E190,$E$184:$F$213,2,FALSE),"OK","Error") -> OK
A191: The Propeller Academy Trust | B191: 3 | E191: Faringdon Learning Trust | F191: =GETPIVOTDATA("Schools in Sponsor Trusts",$A$167,"Trust / sponsor details","Faringdon Learning Trust") -> 9 | G191: =IF(IFERROR(VLOOKUP(E191,$A$167:$B$199,2,FALSE),0)+IFERROR(VLOOKUP(E191,$E$167:$F$179,2,FALSE),0)=VLOOKUP(E191,$E$184:$F$213,2,FALSE),"OK","Error") -> OK
A192: The Warriner Multi Academy Trust | B192: 6 | E192: Omnia Learning Trust | F192: =GETPIVOTDATA("Trust name / sponsor",$E$167,"Trust name / sponsor","Omnia Learning Trust") -> 3 | G192: =IF(IFERROR(VLOOKUP(E192,$A$167:$B$199,2,FALSE),0)+IFERROR(VLOOKUP(E192,$E$167:$F$179,2,FALSE),0)=VLOOKUP(E192,$E$184:$F$213,2,FALSE),"OK","Error") -> OK
A193: The White Horse Federation | B193: 2 | E193: Gillots School | F193: =GETPIVOTDATA("Schools in Sponsor Trusts",$A$167,"Trust / sponsor details","Gillots School") -> 1 | G193: =IF(IFERROR(VLOOKUP(E193,$A$167:$B$199,2,FALSE),0)+IFERROR(VLOOKUP(E193,$E$167:$F$179,2,FALSE),0)=VLOOKUP(E193,$E$184:$F$213,2,FALSE),"OK","Error") -> OK
A194: United Learning Trust (ULT) | B194: 6 | E194: GLF Schools | F194: =GETPIVOTDATA("Schools in Sponsor Trusts",$A$167,"Trust / sponsor details","GLF Schools")+GETPIVOTDATA("Trust name / sponsor",$E$173,"Trust name / sponsor","GLF Schools") -> 7 | G194: =IF(IFERROR(VLOOKUP(E194,$A$167:$B$199,2,FALSE),0)+IFERROR(VLOOKUP(E194,$E$167:$F$179,2,FALSE),0)=VLOOKUP(E194,$E$184:$F$213,2,FALSE),"OK","Error") -> OK
A195: Vale Academy Trust | B195: 8 | E195: MacIntyre Academy Trust | F195: =GETPIVOTDATA("Trust name / sponsor",$E$167,"Trust name / sponsor","MacIntyre Academy Trust") -> 1 | G195: =IF(IFERROR(VLOOKUP(E195,$A$167:$B$203,2,FALSE),0)+IFERROR(VLOOKUP(E195,$E$167:$F$176,2,FALSE),0)=VLOOKUP(E195,$E$180:$F$222,2,FALSE),"OK","Error") -> OK
A196: (blank) | B196: 1 | E196: Maiden Erlegh Trust | F196: =GETPIVOTDATA("Schools in Sponsor Trusts",$A$167,"Trust / sponsor details","Maiden Erlegh Trust") -> 1 | G196: =IF(IFERROR(VLOOKUP(E196,$A$167:$B$203,2,FALSE),0)+IFERROR(VLOOKUP(E196,$E$167:$F$176,2,FALSE),0)=VLOOKUP(E196,$E$180:$F$222,2,FALSE),"OK","Error") -> OK
A197: Grand Total | B197: 160 | E197: Oxford Diocesan Schools Trust | F197: =GETPIVOTDATA("Schools in Sponsor Trusts",$A$167,"Trust / sponsor details","Oxford Diocesan Schools Trust")+GETPIVOTDATA("Trust name / sponsor",$E$167,"Trust name / sponsor","Oxford Diocesan Schools Trust") -> 34 | G197: =IF(IFERROR(VLOOKUP(E197,$A$167:$B$196,2,FALSE),0)+IFERROR(VLOOKUP(E197,$E$167:$F$179,2,FALSE),0)=VLOOKUP(E197,$E$180:$F$213,2,FALSE),"OK","Error") -> OK
E198: Oxfordshire Primary Education Network (OPEN) | F198: =GETPIVOTDATA("Schools in Sponsor Trusts",$A$167,"Trust / sponsor details","Oxfordshire Primary Education Network (OPEN)") -> 4 | G198: =IF(IFERROR(VLOOKUP(E198,$A$167:$B$196,2,FALSE),0)+IFERROR(VLOOKUP(E198,$E$167:$F$179,2,FALSE),0)=VLOOKUP(E198,$E$180:$F$213,2,FALSE),"OK","Error") -> OK
E199: The Propeller Academy Trust | F199: =GETPIVOTDATA("Schools in Sponsor Trusts",$A$167,"Trust / sponsor details","The Propeller Academy Trust") -> 3 | G199: =IF(IFERROR(VLOOKUP(E198,$A$167:$B$203,2,FALSE),0)+IFERROR(VLOOKUP(E198,$E$167:$F$176,2,FALSE),0)=VLOOKUP(E198,$E$180:$F$222,2,FALSE),"OK","Error") -> OK
E200: Radcliffe Academy Trust | F200: =GETPIVOTDATA("Schools in Sponsor Trusts",$A$167,"Trust / sponsor details","Radcliffe Academy Trust") -> 1 | G200: =IF(IFERROR(VLOOKUP(E199,$A$167:$B$203,2,FALSE),0)+IFERROR(VLOOKUP(E199,$E$167:$F$176,2,FALSE),0)=VLOOKUP(E199,$E$180:$F$222,2,FALSE),"OK","Error") -> OK
E201: Ridgeway Education Trust | F201: =GETPIVOTDATA("Schools in Sponsor Trusts",$A$167,"Trust / sponsor details","Ridgeway Education Trust") -> 7 | G201: =IF(IFERROR(VLOOKUP(E200,$A$167:$B$203,2,FALSE),0)+IFERROR(VLOOKUP(E200,$E$167:$F$176,2,FALSE),0)=VLOOKUP(E200,$E$180:$F$222,2,FALSE),"OK","Error") -> OK
... 17 more rows

Sheet Converting
A1: Name of converting establishment | B1: Phase | C1: Age Range | D1: DfE code | E1: Type of School | F1: Programmed Conversion Date | G1: Type of Conversion - Voluntary or Sponsored | H1: Type of Trust | I1: Trust / sponsor details | J1: Additional Comments
A2: St Mary's Catholic Primary, Bicester | B2: Pri | C2: 4-11 | D2: 3824 | E2: VA | F2: 2024-10-01 | G2: Voluntary | H2: MAT | I2: Pope Francis MAC | J2: Academy order approved at March Advisory Board
A3: Stephen Freeman Community School | B3: Pri | C3: 3-11 | D3: 2594 | E3: Com | F3: 2024-11-01 | G3: Voluntary | H3: MAT | I3: Ridgeway Education Trust | J3: Academy Order received at May advisory Board
A4: Woodeaton Manor School | B4: Spec | C4: 2-19 | D4: 7002 | E4: SP | F4: 2025-02-01 | G4: Sponsored Academy brokered by DfE | H4: MAT | I4: The Propeller Trust | J4: Academy order received. Sponsor now approved by DfE
G8: Trust / Sponsor | H8: No of Schs
G9: Ridgeway Education Trust | H9: 1
G10: Pope Francis MAC | H10: 1
G11: The Propeller Trust | H11: 1
G12: Grand Total | H12: 3

Sheet Consulting
A1: Name of converting establishment | B1: Phase | C1: Age Range | D1: DfE code | E1: Type of School | F1: Provisional Conversion Date | G1: Type of Conversion - Voluntary or Sponsored | H1: Type of Trust | I1: Trust / sponsor details | J1: Additional Comments
A2: St Michael's CE Pri (Steventon) | B2: Pri | C2: 3-11 | D2: 3241 | E2: VC | F2: Unknown | G2: Voluntary | H2: MAT | I2: Abingdon Learning Trust
A3: Sacred Heart Catholic Primary (Henley-on-Thames) | B3: Pri | C3: 4-11 | D3: 3820 | E3: VA | F3: Unknown | G3: Voluntary | H3: MAT | I3: Pope Francis MAC | J3: Submitted EOI to DfE
A4: Church Cowley St James CE (Controlled) Primary | B4: Pri | C4: 3-11 | D4: 3210 | E4: VC | F4: Unknown | G4: Voluntary | H4: MAT | I4: River Learning Trust
A5: Edward Feild Primary | B5: Pri | C5: 4-11 | D5: 2590 | E5: COM | F5: Unknown | G5: Voluntary | H5: MAT | I5: River Learning Trust | J5: Notified of intent 21/06/2023
A6: Fringford CE Primary | B6: Pri | C6: 4-11 | D6: 3083 | E6: VC | F6: Unknown | G6: Voluntary | H6: MAT | I6: The Warriner MAT | J6: Submitted EOI to DfE

Sheet New schs since 2013
A1: '"New" schools refer to schools opened since 2013 (the academies programme start)
A2: New open academies | B2: Trust name / sponsor | C2: DfE code | D2: No. of places | E2: Type of Academy | F2: Planned opening date | G2: Opened | H2: Age range | I2: Phase | J2: Additional information | K2: Additional Comments
A3: Bloxham Grove Academy | B3: The Gallery Trust | C3: 7009 | D3: 100 | E3: Special Free School | F3: 2024-01-01 | G3: 2024-01-11 | H3: 7-18 | I3: Spec | J3: 100 places SEMH/ASD. Free school | K3: School opened in Satellite at Longford Park 1st September
A4: St Johns Cof E Academy (Primary Phase) | B4: Vale Academy Trust | C4: 4022 | D4: 420 | E4: All through | F4: 2023-09-01 | G4: 2023-09-18 | H4: 2-11 | I4: all through | J4: Primary phase of all through school. Secondary phase due to open in September 24 | K4: 2FE primary and 4 FE Secondary (No Sixth Form) including 90 FTE nursery
A5: Sires Hill Primary Academy | B5: Omnia Learning Trust | C5: 2040 | D5: 420 | E5: Primary Academy | F5: 2023-09-01 | G5: 2023-09-11 | H5: 2-11 | I5: Pri | J5: 2 FE primary plus nursery
A6: Graven Hill | B6: The Warriner MAT | C6: 2041 | D6: 420 | E6: Primary academy | F6: 2023-09-01 | G6: 2023-09-11 | H6: 2-11 | I6: Pri | J6: 2 FE including 90 Fte Nursery places
A7: Windrush CofE Primary School (West Witney) | B7: River Learning Trust | C7: 2038 | D7: 315 | E7: Primary school academy | F7: 2021-09-01 | G7: 2021-09-01 | H7: 2-11 | I7: Pri | J7: 45fte nursery for 2- and 3-year-olds. 6 places for specialist resourced provision - communication and interaction needs, physical or sensory needs.
A8: St Frideswide CE Primary School | B8: ODST | C8: 2037 | D8: 420 | E8: Primary school academy | F8: 2020-11-01 | G8: 2020-11-01 | H8: 3-11 | I8: Pri | J8: This school opened following the De- amalgamation of St Gregory the Great and is part of ODST
A9: Wantage Primary School (Kingsgrove/Crab Hill) | B9: Omnia Learning Trust | C9: 2033 | D9: 420 | E9: Primary school academy | F9: 2020-09-01 | G9: 2020-09-14 | H9: 3-11 | I9: Pri | J9: 2 FE including Nursey - Number of places TBC Agreed delayed opening by two weeks with DfE. | K9: Previously GEMS learning trust and GEMS Wantage Primary Academy. Name changed March 2021
A10: Cherry Fields Primary school (Southam Road) | B10: GLF Schools | C10: 2036 | D10: 210 | E10: Primary school academy | F10: 2020-09-01 | G10: 2020-09-01 | H10: 3-11 | I10: Pri | J10: 39 fte places for 2- and 3-year-olds. Inclusive of 6 places reserved for specialist resourced provision.
A11: Barton Park Primary School (Barton West) | B11: River Learning Trust | C11: 2034 | D11: 420 | E11: Primary school academy | F11: 2020-09-01 | G11: 2020-09-01 | H11: 3-11 | I11: Pri | J11: 26fte nursery for 3-year-olds; EY accommodation would also provide option for 2-year-old places, at least while school remains at 1.5fe.8 places places for specialist resourced provision - behaviour, emotional and social difficulties. | K11: Community Schools Alliance trust (CSAT) rebrokered to River Learning Trust on 1st Feb 2022
A12: Whitelands Academy (SW Bicester) | B12: The White Horse Federation | C12: 4017 | D12: 600 | E12: Secondary free school (academy) | F12: 2020-09-01 | G12: 2020-09-01 | H12: 11-16 | I12: Sec | K12: Opened in Gagle Brook Primary School. Ocupation of new building expected from 2nd November 2020.
A13: Swan School | B13: River Learning Trust | C13: 4016 | D13: 880 | E13: Secondary school academy | F13: 2019-09-01 | G13: 2019-09-02 | H13: 11-18 | I13: Sec | J13: 4FE Secondary Free School | K13: To meet demand for places in Oxford City. 4FE in September 2019 rising to 6FE in September 2019
A14: Aureus Primary School , Great Western Park, Didcot (Formally Chalkhill) | B14: GLF Schools | C14: 2011 | D14: 420 | E14: Primary school academy | F14: 2018-09-01 | G14: 2018-09-03 | H14: 3-11 | I14: Pri | J14: 26fte nursery for 3-year-olds | K14: To meet demand from new housing development in Great Western Park. A private day nursery will be opened close to the first primary school - planned for 2018
A15: Gagle Brook Primary School (NW Bicester eco-town) | B15: The White Horse Federation | D15: 210 | E15: Primary school academy | F15: 2018-09-01 | G15: 2018-09-01 | H15: 3-11 | I15: Pri | J15: 26fte nursery for 3-year-olds; EY accommodation may also provide option for 2-year-old places until school reaches full operating size. 8 places places for specialist resourced provision - communication and interaction needs, physical or sensory needs. | K15: To meet demand from new housing development.
A16: Aureus Secondary School, Great Western Park, Didcot | B16: GLF Schools | C16: 4004 | D16: 1200 | E16: Secondary school academy | F16: 2017-09-01 | G16: 2017-09-11 | H16: 11-16 | I16: Sec | J16: GLF Schools - approved by SoS subject to funding agreement | K16: To meet demand from new housing development in Great Western Park. Co-location with UTC (due to open 2015)
A17: Longford Park Primary, Banbury (Bankside) | B17: GLF Schools | C17: 2017 | D17: 420 | E17: Primary school academy | F17: 2017-09-01 | G17: 2017-09-07 | H17: 4-11 | I17: Pri | J17: 39fte nursery for 2- and 3-year-olds. 6 places places for specialist resourced provision - communication and interaction needs, physical or sensory needs. | K17: To meet demand from new housing development.
A18: Didcot Primary Academy (Great Western Park) | B18: Omnia Learning Trust | C18: 2012 | D18: 420 | E18: Primary school academy | F18: 2016-09-01 | G18: 2016-09-07 | H18: 3-11 | I18: Pri | K18: Previously GEMS learning trust and GEMS Didcot Primary Academy. Name changed March 2021
A19: UTC Oxfordshire (at Didcot) | B19: Activate Learning Education Trust | C19: 4008 | D19: 350 | E19: UTC | F19: 2015-09-01 | G19: 2015-09-07 | H19: 14-19 | I19: UTC
A20: Futures Institute, Banbury | B20: Aspirations Academy Trust (AAT) | C20: 4006 | D20: 300 | E20: Studio School | F20: 2014-09-01 | G20: 2014-09-01 | H20: 14-19 | I20: Studio | J20: Previously known as Banbury Space Studio (Changed name Sep 19)
A21: Endeavour Academy (MacIntyre Academy for Autistic Pupils) | B21: MacIntyre Academy Trust | C21: 7003 | D21: 25 | E21: Special | F21: 2014-09-01 | G21: 2014-09-01 | H21: 11-19 | I21: Spec
A22: Europa | B22: Europa School Trust | C22: 4002 | E22: All through | F22: 2013-09-01 | G22: 2013-09-01 | H22: 4-19 | I22: all through | J22: Languages school
A23: Heyford Park Free School | B23: Eynsham Partnership Academy | C23: 4018 | D23: 840 | E23: All through | F23: 2013-09-01 | G23: 2013-09-01 | H23: 4-19 | I23: all through | J23: Rebrokered to Eynsham Partnership 1st November 2020 previous DfE 4003
A24: Tyndale Community Primary Free School | B24: ODST | C24: 2008 | D24: 470 | E24: Primary | F24: 2013-09-01 | G24: 2013-09-01 | H24: 4-11 | I24: Pri | J24: Rebrokered to ODST May 2020 - previously Chapel Street Community School Trust
A26: * The Bicester Technology Studio closed in August 2021 and is now part of The Bicester School.
A29: Row Labels | B29: Count of Phase
A30: all through | B30: 3
A31: Pri | B31: 12
A32: Sec | B32: 3
A33: Spec | B33: 2
A34: Studio | B34: 1
A35: UTC | B35: 1
A36: Grand Total | B36: 22

Sheet Approved new schools
A1: New academies with confirmed opening dates | B1: Trust name / sponsor | C1: DfE code | D1: No. of places | E1: Type of Academy | F1: Planned opening date | G1: Opened | H1: Age range | I1: Phase | J1: Additional information | K1: Additional Comments
A2: Special Free School (Faringdon) | B2: The Gallery Trust | D2: 118 | E2: Special Free School | F2: 2025-09-01 | H2: 7-18 | I2: Spec | J2: 118 places SEMH/ASD. Free school
A3: Primary Academy (Valley Park, Didcot) | B3: TBC | D3: 630 | E3: Primary School | F3: 2026-09-01 | H3: 2-11 | I3: Pri | J3: 3FE Primary plus nursery
A5: New School Stats at a glance:
A6: Age range | B6: (All)
A8: Academy Type | B8: Column Labels
A9: Row Labels | B9: Pri | C9: Spec | D9: Grand Total
A10: Special Free School | B10: 0 | C10: 1 | D10: 1
A11: Primary School | B11: 1 | C11: 0 | D11: 1
A12: Grand Total | B12: 1 | C12: 1 | D12: 2

Sheet New schs awaiting approval
A1: Proposed new academies opening date not yet approved | B1: Type of school | C1: DfE Code | D1: Size | E1: Age range | F1: Proposed opening date | G1: Progress | H1: Nursery and SEN | I1: (Potential) Sponsor/s | J1: Additional comments
A2: Special Free School (Didcot) | B2: SEN | F2: 2028-01-01 | J2: Dependent on delivery of site

Sheet Maintained
A1: Establishment Name | B1: Phase | C1: DFE | D1: TYPE | E1: Diocese | F1: Age range | L1: Click on the sch name in col A, then click the button to the left to move a school to the consulting tab
A2: Appleton CE (A) Primary | B2: Pri | C2: 3850 | D2: VA | E2: Oxford | F2: 4-11 | H2: above to move a school to the consulting tab
A3: Aston & Cote CofE Primary | B3: Pri | C3: 3120 | D3: VC | E3: na | F3: 4-11
A4: Aston Rowant CofE Primary | B4: Pri | C4: 3180 | D4: VA | E4: na | F4: 4-11
A5: Barley Hill Primary | B5: Pri | C5: 2463 | D5: COM | E5: na | F5: 4-11
A6: Bladon CofE Primary | B6: Pri | C6: 3146 | D6: VC | E6: na | F6: 4-11
A7: Bletchingdon Parochial CofE Primary | B7: Pri | C7: 3141 | D7: VA | E7: Oxford | F7: 3-11
A8: Bloxham CofE Primary | B8: Pri | C8: 3064 | D8: VC | E8: na | F8: 4-11
A9: Brookside Primary | B9: Pri | C9: 2202 | D9: COM | E9: na | F9: 3-11
A10: Bure Park Primary | B10: Pri | C10: 2610 | D10: COM | E10: na | F10: 3-11
A11: Caldecott Primary | B11: Pri | C11: 2605 | D11: COM | E11: na | F11: 3-11
A12: Carswell Community Primary | B12: Pri | C12: 2595 | D12: COM | E12: na | F12: 3-11
A13: Chadlington CofE Primary | B13: Pri | C13: 3043 | D13: VC | E13: na | F13: 4-11
A14: Charlton-On-Otmoor CE Primary | B14: Pri | C14: 3081 | D14: VC | E14: na | F14: 3-11
A15: Checkendon CofE (A) Primary | B15: Pri | C15: 3801 | D15: VA | E15: Oxford | F15: 4-11
A16: Chesterton CE Primary | B16: Pri | C16: 3082 | D16: VA | E16: Oxford | F16: 4-11
A17: Chilton County Primary | B17: Pri | C17: 2555 | D17: COM | E17: na | F17: 3-11
A18: Clanfield CofE Primary | B18: Pri | C18: 3100 | D18: VC | E18: na | F18: 4-11
A19: Clifton Hampden CofE Primary | B19: Pri | C19: 3183 | D19: VC | E19: na | F19: 4-11
A20: Combe CofE Primary | B20: Pri | C20: 3142 | D20: VC | E20: na | F20: 4-11
A21: Crowmarsh Gifford CofE School | B21: Pri | C21: 3200 | D21: VC | E21: na | F21: 4-11
A22: Cumnor CE School (VC) | B22: Pri | C22: 3223 | D22: VC | E22: na | F22: 4-11
A23: Dorchester St Birinus CofE School | B23: Pri | C23: 3186 | D23: VC | E23: na | F23: 4-11
A24: Drayton CP School | B24: Pri | C24: 2560 | D24: COM | E24: na | F24: 4-11
A25: Dry Sandford Primary | B25: Pri | C25: 2565 | D25: COM | E25: na | F25: 4-11
A26: Ducklington Primary | B26: Pri | C26: 3122 | D26: VC | E26: na | F26: 4-11
A27: Dunmore Primary | B27: Pri | C27: 3861 | D27: COM | E27: na | F27: 3-11
A28: East Oxford Primary | B28: Pri | C28: 2525 | D28: COM | E28: na | F28: 3-11
A29: Enstone Primary | B29: Pri | C29: 2103 | D29: COM | E29: na | F29: 4-11
A30: Ewelme CofE Primary | B30: Pri | C30: 3752 | D30: VA | E30: Oxford | F30: 4-11
A31: Five Acres Primary | B31: Pri | C31: 2200 | D31: COM | E31: na | F31: 3-11
A32: Gateway Primary | B32: Pri | C32: 2254 | D32: COM | E32: na | F32: 4-11
A33: Goring CE Aided Primary | B33: Pri | C33: 3803 | D33: VA | E33: Oxford | F33: 4-11
A34: Great Milton CE Primary | B34: Pri | C34: 3187 | D34: VC | E34: na | F34: 4-11
A35: Great Rollright CE (Aided) Primary | B35: Pri | C35: 3408 | D35: VA | E35: Oxford | F35: 4-11
A36: Great Tew County Primary | B36: Pri | C36: 2104 | D36: COM | E36: na | F36: 4-11
A37: Hailey CofE Primary | B37: Pri | C37: 3123 | D37: VC | E37: na | F37: 3-11
A38: Harwell Primary | B38: Pri | C38: 2563 | D38: COM | E38: na | F38: 4-11
A39: Hook Norton CofE Primary | B39: Pri | C39: 3044 | D39: VC | E39: na | F39: 3-11
A40: John Hampden Primary | B40: Pri | C40: 2591 | D40: COM | E40: na | F40: 3-11
A41: Kingham Pri School | B41: Pri | C41: 2106 | D41: COM | E41: na | F41: 4-11
A42: King's Meadow School | B42: Pri | C42: 2210 | D42: COM | E42: na | F42: 3-11
A43: Kirtlington CofE Primary | B43: Pri | C43: 3500 | D43: VA | E43: Oxford | F43: 4-11
A44: Langford Village Community School | B44: Pri | C44: 2608 | D44: COM | E44: na | F44: 3-11
A45: Launton CofE Primary | B45: Pri | C45: 3085 | D45: VC | E45: na | F45: 3-11
A46: Lewknor CofE Primary | B46: Pri | C46: 3184 | D46: VC | E46: na | F46: 4-11
A47: Little Milton CofE Primary | B47: Pri | C47: 3755 | D47: VA | E47: Oxford | F47: 4-11
A48: Long Furlong Primary | B48: Pri | C48: 2602 | D48: COM | E48: na | F48: 3-11
A49: Longworth Primary School | B49: Pri | C49: 3234 | D49: VA | E49: Oxford | F49: 5-11
A50: Longfields Pri and Nursery School | B50: Pri | C50: 2207 | D50: COM | E50: na | F50: 3-11
A51: Marcham CE (VC) Primary | B51: Pri | C51: 3235 | D51: VC | E51: na | F51: 4-11
A52: Marsh Baldon CE (Controlled) School | B52: Pri | C52: 3188 | D52: VC | E52: na | F52: 4-11
A53: Mill Lane School | B53: Pri | C53: 2465 | D53: COM | E53: na | F53: 3-11
A54: Nettlebed Community School | B54: Pri | C54: 2504 | D54: COM | E54: na | F54: 4-11
A55: New Hinksey CofE Primary | B55: Pri | C55: 3213 | D55: VC | E55: na | F55: 3-11
A56: North Kidlington Primary | B56: Pri | C56: 2357 | D56: COM | E56: na | F56: 4-11
A57: Orchard Fields Community Primary | B57: Pri | C57: 2055 | D57: COM | E57: na | F57: 3-11
A58: Peppard CofE Primary | B58: Pri | C58: 3205 | D58: VC | E58: na | F58: 4-11
A59: Queensway School | B59: Pri | C59: 2057 | D59: COM | E59: na | F59: 4-11
A60: Radley CofE Primary | B60: Pri | C60: 3238 | D60: VC | E60: na | F60: 3-11
A61: RAF Benson Community Primary | B61: Pri | C61: 2450 | D61: COM | E61: na | F61: 4-11
A62: Shellingford CE (VA) School | B62: Pri | C62: 3853 | D62: VA | E62: Oxford | F62: 4-11
A63: Shenington CofE Primary | B63: Pri | C63: 5200 | D63: VA | E63: Oxford | F63: 4-11
A64: Shiplake CofE School | B64: Pri | C64: 3810 | D64: VA | E64: Oxford | F64: 4-11
A65: Sonning Common Primary | B65: Pri | C65: 2506 | D65: COM | E65: na | F65: 4-11
A66: South Stoke Community School | B66: Pri | C66: 2507 | D66: COM | E66: na | F66: 4-11
A67: St Aloysius' Catholic Primary | B67: Pri | C67: 3842 | D67: VA | E67: B'ham | F67: 4-11
A68: St Amand's Catholic Primary | B68: Pri | C68: 3855 | D68: VA | E68: Portsm'th | F68: 4-11
A69: St Andrew's CofE Primary | B69: Pri | C69: 3211 | D69: VC | E69: na | F69: 4-11
A70: St Andrew's CofE Primary, Chinnor | B70: Pri | C70: 3182 | D70: VC | E70: na | F70: 4-11
A71: St Barnabas' CofE (Aided) Primary | B71: Pri | C71: 3832 | D71: VA | E71: Oxford | F71: 3-11
A72: St Blaise CE Primary | B72: Pri | C72: 3260 | D72: VC | E72: na | F72: 4-11
A73: St Ebbe's CE (Aided) Primary | B73: Pri | C73: 3833 | D73: VA | E73: Oxford | F73: 4-11
A74: St Edburg's CofE (VA) School | B74: Pri | C74: 2505 | D74: VA | E74: Oxford | F74: 3-11
A75: St Edmund's Catholic Primary | B75: Pri | C75: 3856 | D75: VA | E75: Portsm'th | F75: 3-11
A76: St John The Evangelist CE (A) Primary | B76: Pri | C76: 2613 | D76: VA | E76: Oxford | F76: 3-11
A77: St Joseph's Catholic Primary (Oxford) | B77: Pri | C77: 3838 | D77: VA | E77: B'ham | F77: 4-11
A78: St Kenelm's CofE (VC) School | B78: Pri | C78: 3125 | D78: VC | E78: na | F78: 4-11
A79: St Leonard's CE Primary | B79: Pri | C79: 3262 | D79: VC | E79: na | F79: 3-11
A80: St Mary & St John CofE Primary | B80: Pri | C80: 3834 | D80: VA | E80: Oxford | F80: 4-11
A81: St Mary's CE (Aided) Primary (Chipping Norton) | B81: Pri | C81: 3858 | D81: VA | E81: Oxford | F81: 4-11
A82: St Michael's CofE Primary | B82: Pri | C82: 3216 | D82: VA | E82: Oxford | F82: 4-11
A83: St Nicholas' Primary | B83: Pri | C83: 2352 | D83: COM | E83: na | F83: 3-11
A84: St Nicolas CE Primary (Abingdon) | B84: Pri | C84: 3247 | D84: VC | E84: na | F84: 4-11
A85: St Philip & St James CofE Aided School | B85: Pri | C85: 3835 | D85: VA | E85: Oxford | F85: 4-11
A86: St Swithun's CofE Primary | B86: Pri | C86: 3258 | D86: VC | E86: na | F86: 3-11
A87: Stanford-In-The-Vale CE Primary | B87: Pri | C87: 3240 | D87: VC | E87: na | F87: 3-11
A88: Stockham Primary | B88: Pri | C88: 2583 | D88: COM | E88: na | F88: 4-11
A89: Stoke Row CofE School | B89: Pri | C89: 3206 | D89: VA | E89: Oxford | F89: 4-11
A90: Stonesfield School | B90: Pri | C90: 2353 | D90: COM | E90: na | F90: 4-11
A91: Sunningwell CofE Primary | B91: Pri | C91: 3242 | D91: VC | E91: na | F91: 4-11
A92: Tetsworth Primary | B92: Pri | C92: 2456 | D92: COM | E92: na | F92: 4-11
A93: The Grange School | B93: Pri | C93: 2058 | D93: COM | E93: na | F93: 4-11
A94: The Ridgeway CE (C) Primary | B94: Pri | C94: 3231 | D94: VC | E94: na | F94: 4-11
A95: Thomas Reade Primary | B95: Pri | C95: 2587 | D95: COM | E95: na | F95: 3-11
A96: Trinity CofE Primary | B96: Pri | C96: 3254 | D96: VC | E96: na | F96: 4-11
A97: Valley Road School | B97: Pri | C97: 2512 | D97: COM | E97: na | F97: 4-11
A98: West Oxford Community Primary | B98: Pri | C98: 2533 | D98: COM | E98: na | F98: 3-11
A99: West Witney County Primary | B99: Pri | C99: 2601 | D99: COM | E99: na | F99: 3-11
A100: Whitchurch County Primary | B100: Pri | C100: 2208 | D100: COM | E100: na | F100: 4-11
A101: William Fletcher Primary | B101: Pri | C101: 2354 | D101: COM | E101: na | F101: 4-11
A102: Windmill Primary | B102: Pri | C102: 2527 | D102: COM | E102: na | F102: 4-11
A103: Wood Farm Primary | B103: Pri | C103: 2589 | D103: COM | E103: na | F103: 4-11
A104: Woodcote Primary | B104: Pri | C104: 2510 | D104: COM | E104: na | F104: 4-11
A105: Woodstock CofE Primary | B105: Pri | C105: 3145 | D105: VC | E105: na | F105: 3-11
A106: Wootton St Peter CofE School | B106: Pri | C106: 3854 | D106: VA | E106: Oxford | F106: 4-11
A107: Wychwood CE Primary | B107: Pri | C107: 3257 | D107: VC | E107: na | F107: 3-11
A108: Uffington CE Primary | B108: Pri | C108: 3251 | D108: VC | E108: Oxford | F108: 3-11
A109: Carterton Community College | B109: Sec | C109: 4041 | D109: LEA | E109: na | F109: 11-18
A110: Frank Wise School | B110: Spec | C110: 7010 | D110: SP | E110: na | F110: 2-19
A111: John Watson School | B111: Spec | C111: 7011 | D111: LEA | E111: na | F111: 2-19
A112: Oxfordshire Hospital School | B112: Spec | C112: 7017 | D112: COM | E112: na | F112: 2-19
A114: Nurseries
A115: Establishment Name | B115: Phase | C115: DFE | D115: TYPE | E115: Diocese | F115: Age range
A116: Comper Foundation Stage School | B116: Foundation Stage | C116: 1005 | D116: COM | E116: na | F116: to 4
A117: Grandpont Nursery & Children's Centre | B117: Foundation Stage | C117: 1010 | D117: COM | E117: na | F117: to 4
A118: Headington Quarry Foundation Stage School | B118: Foundation Stage | C118: 1006 | D118: COM | E118: na | F118: to 4
A119: Lydalls Nursery School | B119: Foundation Stage | C119: 1017 | D119: COM | E119: na | F119: to 4
A120: Slade Foundation Stage School | B120: Foundation Stage | C120: 1011 | D120: COM | E120: na | F120: to 4
A121: The Ace Centre Nursery School | B121: Foundation Stage | C121: 1019 | D121: COM | E121: na | F121: to 4
A122: Wheatley Nursery School | B122: Foundation Stage | C122: 1031 | D122: COM | E122: na | F122: to 4
A124: Other establishments
A125: Establishment Name | B125: Phase | C125: DFE | D125: TYPE | E125: Diocese | F125: Age range
A126: Virtual School for Looked After Children | B126: Virtual School | C126: na | D126: COM | E126: na | F126: 0-25

Sheet Halted conversions
A1: Schools which have previously consulted on academy status but are currently taking no further action
A2: Name of converting establishment | B2: Column1 | C2: Phase | D2: Column2 | E2: DfE code | F2: Column3 | G2: Type of School | H2: Programmed Conversion Date | I2: Type of Conversion - Voluntary or Sponsored | J2: Type of Trust | K2: Trust / sponsor details | L2: Additional Comments
A3: Ducklington | C3: Pri | E3: 3122 | G3: VC | I3: Was a voluntary Converter | L3: Was going to join the Mill Academy.
A4: Cumnor C of E Primary School | C4: Pri | E4: 3223 | G4: Controlled | I4: Consulted - taking no further action | L4: currently looking at other options as received recent 'good' ofsted rating and therefore may not go down sponsored route.
A5: Barley Hill Primary School | C5: Pri | E5: 2463 | G5: Community | I5: Consulted - taking no further action
A6: Gateway Primary School | C6: Pri | E6: 2245 | G6: Community | I6: Consulted - taking no further action | J6: MAT | L6: Carterton MAT group have now withdrawn their application and are considering other collaborative options i.e collaborative companies
A7: Carterton Primary School | C7: Pri | E7: 2252 | G7: Community | I7: Consulted - taking no further action | J7: MAT
A8: Carterton Community College | C8: Sec | E8: 4041 | G8: Community | I8: Consulted - taking no further action | J8: MAT
A9: Aston & Cote | C9: Pri | E9: 3120 | G9: VC | I9: Consulted - taking no further action (Dec 16) | L9: consulting on options with local schools and parents, looking at a MAT w local partners as best option
A10: St Amand's Catholic Primary | C10: Pri | E10: 3855 | G10: VA | I10: Consulted - taking no further action (Jun 17) | K10: Frassati Catholic Academy Trust | L10: Governors of St Amand’s postponed application for an Academy Order and will not be converting to the Frassati MAT in February 2018 (aspirational date).
A11: St Michael's CE Pri (Steventon) | C11: Pri | G11: VC | I11: submitted application to DfE - but taking no further action July 2019
A12: St Ebbe's CE (Aided) Primary | C12: Pri | G12: VA | I12: submitted application to DfE - but taking no further action July 2019
A13: Oxfordshire Hospital School | C13: Spec | E13: 7017 | G13: Community | I13: Sponsored initially, then voluntary following outstanding Ofsted. (DAO revoked) | L13: Originally sponsored but conversion delayed due to Swan school. School ofsted then rated outstanding. DAO revoked, academy order re-issued. Conversion delayed and school has no current plans to convert.
A14: Longworth Primary School | B14: Pri | C14: Pri | D14: 3234 | F14: TBC | G14: VA | H14: MAT | I14: Voluntary | J14: MAT | K14: Faringdon learning trust | L14: Consulted to join FLT, School and Trust agreed to pause. May 22
A15: Uffington | C15: Pir | G15: VC | I15: Voluntary - consulted to join Faringdon Learning Trust | K15: Faringdon learning trust | L15: Faringdon Learning Trust are conuslting to merge with Vale Academy Trust. Conversion's paused until merger complete

Sheet Stats
B1: "New" schools refer to schools opened since 2013 (the academies programme start)
B2: Maintained estate BEFORE academies/free schools: | G2: Shows ALL schools incl new schools, today
B3: 34 | C3: sec schools that were maintained | F3: =G3/$I$7 -> 0.02564102564 | G3: =COUNTIF(Maintained[Phase],"Sec")+COUNTIF(Consulting[Phase],"Sec")+COUNTIF(Converting[Phase],"Sec") -> 1 | H3: sec schools (maintained)
B4: 0 | C4: all through that were maintained | F4: 0.8461538462 | G4: =COUNTIF(Converted[Phase],"Sec") -> 33 | H4: sec schools converted to academies
B5: 233 | C5: pri that were maintained | F5: 0.07692307692 | G5: =COUNTIF(NewSchs[Phase],"Sec") -> 3 | H5: new sec schools (academies)
B6: 13 | C6: special that were maintained | F6: 0 | G6: =COUNTIFS(NewSchs[Phase],"Sec",NewSchs[Type of Academy],"Free School") -> 0 | H6: sec free schools | I6: Tot Sec | J6: % maint'd | K6: % aca
B7: =SUM(B3:B6) -> 280 | C7: Total | F7: 0.02564102564 | G7: =COUNTIF(NewSchs[Phase],"Studio") -> 1 | H7: Studio schools | I7: =SUM(G3:G8) -> 39 | J7: =F3 -> 0.02564102564 | K7: =(G4+G5+G6+G7+G8)/I7 -> 0.9743589744
F8: 0.02564102564 | G8: =COUNTIF(NewSchs[Phase],"UTC") -> 1 | H8: UTCs
B9: "Conversion" refers to schools that were maintained | F9: =G9/$I$10 -> 0 | G9: =COUNTIF(Converted[Phase],"All through") -> 0 | H9: all through maintained schools | I9: Tot all thru | J9: % maint'd | K9: % aca
B10: but have now converted to academy status | F10: =G10/$I$10 -> 1 | G10: =COUNTIFS(NewSchs[Phase],"all through", NewSchs[Type of Academy],"All through") -> 3 | H10: all through academies | I10: =SUM(G9:G10) -> 3 | J10: 0 | K10: 1
B11: Shows conversions only - does NOT incl. new schs | F11: =G11/$I$18 -> 0.4710743802 | G11: =COUNTIF(Maintained[Phase],"Pri")+COUNTIF(Consulting[Phase],"Pri")+COUNTIF(Converting[Phase],"Pri") -> 114 | H11: pri maintained schools
B12: =COUNTIF(Converted[Phase], "Sec") + COUNTIF(Converted[Phase], "All through") -> 33 | C12: Secondary conversions (/34) | D12: =B12/34 -> 0.9705882353 | F12: =G12/$I$18 -> 0 | G12: =COUNTIF(Maintained[Phase],"Inf")+COUNTIF(Consulting[Phase],"Inf") -> 0 | H12: infant maintained schools
B13: =COUNTIF(Converted[Phase], "Pri") + COUNTIF(Converted[Phase], "Inf") + COUNTIF(Converted[Phase], "Jun") -> 116 | C13: Primary (incl Inf + Jun) conversions (/233) | D13: =B13/233 -> 0.4978540773 | F13: 0 | G13: =COUNTIF(Maintained[Phase],"Jun")+COUNTIF(Consulting[Phase],"Jun") -> 0 | H13: junior maintained schools
B14: =COUNTIF(Converted[Phase], "Spec") -> 10 | C14: Special conversions (/13) | D14: =B14/13 -> 0.7692307692 | F14: 0.00826446281 | G14: =COUNTIF(Converted[Phase],"Inf") -> 2 | H14: infant schs converted to academies
F15: 0.004132231405 | G15: =COUNTIF(Converted[Phase],"Jun") -> 1 | H15: junior schs converted to academies
B16: NB pre-schools are NOT included in any of these statistics | F16: 0.4669421488 | G16: =COUNTIF(Converted[Phase],"Pri") -> 113 | H16: pri schs converted to academies
F17: 0 | G17: =COUNTIFS(NewSchs[Phase],"Pri",NewSchs[Type of Academy],"Free School") -> 0 | H17: pri free schools | I17: Tot Pri | J17: % maint'd | K17: % aca
B18: Academies in progress incl. new schs | F18: 0.04958677686 | G18: =COUNTIF(NewSchs[Phase],"Pri")-COUNTIFS(NewSchs[Phase],"Pri",NewSchs[Type of Academy],"Free School") -> 12 | H18: new pri schools (academies) | I18: =SUM(G11:G18) -> 242 | J18: =(G11+G12+G13)/I18 -> 0.4710743802 | K18: =(G14+G15+G16+G17+G18)/I18 -> 0.5289256198
B19: =COUNTIF(Converting[Phase],"Sec") -> 0 | C19: Sec in progress of conversion | F19: =G19/$I$21 -> 0.25 | G19: =COUNTIF(Maintained[Phase],"Spec")+COUNTIF(Consulting[Phase],"Spec")+COUNTIF(Converting[Phase],"Spec") -> 4 | H19: maintained special schools
B20: =COUNTIF(AppNewSchs[Phase],"Sec") -> 0 | C20: new Sec in progress | F20: =G20/$I$21 -> 0.625 | G20: =COUNTIF(Converted[Phase],"Spec") -> 10 | H20: special schools (academies) | I20: Tot Spec | J20: % maint'd | K20: % aca
B21: =COUNTIF(AppNewSchs[Phase],"Studio") -> 0 | C21: new Studio | D21: Tot Sec | F21: =G21/$I$21 -> 0.125 | G21: =COUNTIF(NewSchs[Phase],"Spec") -> 2 | H21: new special schools | I21: =SUM(G19:G21) -> 16 | J21: =G19/I21 -> 0.25 | K21: =(G20+G21)/I21 -> 0.75
B22: =COUNTIF(AppNewSchs[Phase],"UTC") -> 0 | C22: new UTCs | D22: =SUM(B19:B22) -> 0
B23: =COUNTIF(Converting[Phase],"All through") -> 0 | C23: all through in progress of conversion | D23: Tot all thru | G23: =COUNTIF(Nurseries[Phase],"Foundation Stage") -> 7 | H23: Nurseries
B24: =COUNTIF(AppNewSchs[Phase],"All through") -> 0 | C24: new all through since 2013 | D24: =SUM(B23:B24) -> 0
B25: =COUNTIF(Converting[Phase],"Pri") -> 2 | C25: Pri in progress of conversion | D25: Tot Pri | G25: Phase | H25: Age range | I25: Total number establishments | J25: Academies | K25: % academies
B26: =COUNTIF(AppNewSchs[Phase],"Pri") -> 1 | C26: new Pri in progress | D26: =SUM(B25:B26) -> 3 | G26: Nursery | H26: Up to 4 years | I26: =G23 -> 7 | J26: 0 | K26: =J26/I26 -> 0
B27: =COUNTIF(Converting[Phase],"Spec") -> 1 | C27: Spec in progress of conversion | D27: Tot Spec | G27: Primary | H27: Up to 11 years (excl nursery schools) | I27: =I18 -> 242 | J27: =G14+G15+G16+G17+G18 -> 128 | K27: 0.5289256198
B28: =COUNTIF(AppNewSchs[Phase],"Spec") -> 1 | C28: new Spec in progress | D28: =SUM(B27:B28) -> 2 | G28: Secondary | H28: 11 – 16 years | I28: =COUNTIF(Maintained[Age range],"11-16")+COUNTIF(Converted[Age range],"11-16")+COUNTIF(NewSchs[Age range],"11-16") -> 6 | J28: =COUNTIF(Converted[Age range],"11-16")+COUNTIF(NewSchs[Age range],"11-16") -> 6 | K28: 1 | L28: Tot Sec (combined) | M28: Tot Aca | N28: % Aca
G29: Secondary | H29: 11-18 years | I29: =COUNTIF(Maintained[Age range],"11-18")+COUNTIF(Converted[Age range],"11-18")+COUNTIF(NewSchs[Age range],"11-18") -> 31 | J29: =COUNTIF(Converted[Age range],"11-18")+COUNTIF(NewSchs[Age range],"11-18") -> 30 | K29: 0.9677419355 | L29: =I28+I29+I30 -> 39 | M29: =J28+J29+J30 -> 38 | N29: =M29/L29 -> 0.9743589744
B30: New academies (incl. free schs) open since 2013 | E30: Tot schools | G30: Secondary | H30: 14-19 years | I30: =COUNTIF(NewSchs[Age range],"14-19")+COUNTIF(Converted[Age range],"14-19") -> 2 | J30: =COUNTIF(NewSchs[Age range],"14-19")+COUNTIF(Converted[Age range],"14-19") -> 2 | K30: 1
B31: =COUNTIF(NewSchs[Phase],"Sec") -> 3 | C31: New Sec since 2013 | E31: =I7+I10+I18+I21 -> 300 | G31: All through primary and secondary school | H31: Up to 18 years | I31: =COUNTIF(NewSchs[Phase],"all through")+COUNTIF(Converted[Phase],"All through")+COUNTIF(Maintained[Phase],"all through") -> 3 | J31: =COUNTIF(NewSchs[Phase],"all through")+COUNTIF(NewSchs[Phase],"all through (F)")+COUNTIF(Converted[Phase],"All through") -> 3 | K31: 1
B32: =COUNTIF(NewSchs[Phase],"Studio") -> 1 | C32: New Studio | E32: incl nurseries | H32: Grand total | I32: =SUM(I26:I31) -> 291 | J32: =SUM(J26:J31) -> 169
B33: =COUNTIF(NewSchs[Phase],"UTC") -> 1 | C33: New UTC | E33: =E31+G23 -> 307 | H33: Special | I33: =I21 -> 16 | J33: =COUNTIF(NewSchs[Phase],"Spec")+COUNTIF(NewSchs[Phase],"Spec (F)")+COUNTIF(Converted[Phase],"Spec") -> 12 | K33: =J33/I33 -> 0.75
B34: =COUNTIF(NewSchs[Phase],"all through") -> 3 | C34: New All-through since 2013 | H34: Grand total including special schools: | I34: =I32+I33 -> 307 | J34: =J32+J33 -> 181 | L34: OVERALL STATS
B35: =COUNTIF(NewSchs[Phase],"Pri") -> 12 | C35: New Pri since 2013 | L35: =J32/I32 -> 0.5807560137 | M35: (% of total current schools (not just converted schools) excl special and nursery schools that are academies)
B36: =COUNTIF(NewSchs[Phase],"Spec") -> 2 | C36: New Spec since 2013 | K36: =IF((J27+J28+J29+J30+J31+J33)/E31=L36,"OK","ERROR") -> OK | L36: =J34/E31 -> 0.6033333333 | M36: (% of ALL school that are academies, excl nurseries)
A40: Summary of all schools by phase and type
B41: Nursery | C41: *Primary | D41: % | E41: **Secondary | F41: % | G41: ***Special | H41: % | I41: Total | J41: %
A42: Academy Conversions | C42: =B13 -> 116 | E42: =G4 -> 33 | G42: =B14 -> 10 | I42: =C42+E42+G42 -> 159 | J42: =I42/I47 -> 0.5179153094
A43: Academy Order Made | C43: =GETPIVOTDATA("Trust / sponsor details",'Converting'!$G$8) -> 3 | E43: 0 | G43: =COUNTIF(Converting[[#All],[Phase]],"Spec") -> 1 | I43: =C43+E43+G43 -> 4
A44: New schools | C44: =B35+B34 -> 15 | E44: =B32+B33+B31 -> 5 | G44: =B36 -> 2 | I44: =C44+E44+G44 -> 22 | J44: =I44/I47 -> 0.07166123779
A45: Total Maintained | B45: 7 | C45: =G11 -> 114 | D45: =C45/241 -> 0.4730290456 | E45: 1 | F45: =E45/41 -> 0.0243902439 | G45: =G19 -> 4 | H45: =G45/15 -> 0.2666666667 | I45: =B45+C45+E45+G45 -> 126 | J45: =I45/I47 -> 0.4104234528
A46: Total Academies | C46: =C42+C44 -> 131 | D46: =C46/241 -> 0.5435684647 | E46: =E42+E44 -> 38 | F46: =E46/41 -> 0.9268292683 | G46: =G42+G44 -> 12 | H46: =G46/15 -> 0.8 | I46: =C46+E46+G46 -> 181 | J46: =I46/I47 -> 0.5895765472
A47: Total number of schools | B47: =SUM(B42:B46) -> 7 | C47: =C45+C46 -> 245 | E47: =E45+E46 -> 39 | G47: =G46+G45 -> 16 | H47: =G47/15 -> 1.066666667 | I47: =I46+I45 -> 307 | J47: 1
A49: * Primary includes all through, studio and UTC's.
A50: ** Secondary includes studio and UTC's
A51: ***Special includes OHS & Meadowbrook

Sheet Lists
A1: CompanyNames_Numbers: | B1: Company_Numbers | D1: Company_Names | I1: Abbreviations | M1: List for Trusts to choose from on 'converting' and 'consulting' | P1: Actual sorted list used: (without single converter Trusts)
A2: Abingdon Learning Trust (07931886) | B2: =MID(A2,FIND("(",A2)+1,FIND(")",A2)-FIND("(",A2)-1) -> 07931886 | D2: =LEFT(A2,FIND("(",A2)-2) -> Abingdon Learning Trust | I2: ALT | M2: =INDEX(Converted[Trust / sponsor details],MATCH(0,INDEX(COUNTIF($M$1:M1,Converted[Trust / sponsor details]),0,0),0)) -> The Circle Trust | P2: Activate Learning Education Trust
A3: Acer Trust (09591931) | B3: 09591931 | D3: Acer Trust | I3: Acer | M3: =INDEX(Converted[Trust / sponsor details],MATCH(0,INDEX(COUNTIF($M$1:M2,Converted[Trust / sponsor details]),0,0),0)) -> Ridgeway Education Trust | P3: Aspirations Academy Trust (AAT)
A4: Activate Learning Education Trust (0807909) | B4: 0807909 | D4: Activate Learning Education Trust | I4: ALET | M4: =INDEX(Converted[Trust / sponsor details],MATCH(0,INDEX(COUNTIF($M$1:M3,Converted[Trust / sponsor details]),0,0),0)) -> Oxford Diocesan Schools Trust | P4: Bernwode Schools Trust
A5: Anthem Schools Trust (07468210) | B5: 07468210 | D5: Anthem Schools Trust | I5: AST | M5: =INDEX(Converted[Trust / sponsor details],MATCH(0,INDEX(COUNTIF($M$1:M4,Converted[Trust / sponsor details]),0,0),0)) -> Acer Trust | P5: Anthem Schools Trust
A6: Aspirations Academies Trust (7867577) | B6: 7867577 | D6: Aspirations Academies Trust | I6: AAT | M6: =INDEX(Converted[Trust / sponsor details],MATCH(0,INDEX(COUNTIF($M$1:M5,Converted[Trust / sponsor details]),0,0),0)) -> Eynsham Partnership Academy
A7: Bernwode Schools Trust (09053713) | B7: 09053713 | D7: Bernwode Schools Trust | I7: BST | M7: =INDEX(Converted[Trust / sponsor details],MATCH(0,INDEX(COUNTIF($M$1:M6,Converted[Trust / sponsor details]),0,0),0)) -> 0 | P7: Didcot Academy of Schools
A8: Burford School (8082185) | B8: 8082185 | D8: Burford School | I8: Burford | M8: =INDEX(Converted[Trust / sponsor details],MATCH(0,INDEX(COUNTIF($M$1:M7,Converted[Trust / sponsor details]),0,0),0)) -> Faringdon Learning Trust | P8: Dominic Barberi MAC
A9: Cholsey Primary Academy Trust (08722647) | B9: 08722647 | D9: Cholsey Primary Academy Trust | I9: CPAT | M9: =INDEX(Converted[Trust / sponsor details],MATCH(0,INDEX(COUNTIF($M$1:M8,Converted[Trust / sponsor details]),0,0),0)) -> The Propeller Academy Trust | P9: Eynsham Partnership
A10: Europa School Trust (07649335) | B10: 07649335 | D10: Europa School Trust | I10: EST
A11: Eynsham Partnership Academy Trust (07939655) | B11: 07939655 | D11: Eynsham Partnership Academy Trust | I11: EPA
A12: Faringdon Learning Trust (07977368) | B12: 07977368 | D12: Faringdon Learning Trust | I12: FLT | M12: =INDEX(Converted[Trust / sponsor details],MATCH(0,INDEX(COUNTIF($M$1:M9,Converted[Trust / sponsor details]),0,0),0)) -> River Learning Trust | P12: Faringdon Academy of Schools (FAoS)
A13: Gillots School (07954417) | B13: 07954417 | D13: Gillots School | I13: Gillotts | M13: =INDEX(Converted[Trust / sponsor details],MATCH(0,INDEX(COUNTIF($M$1:M12,Converted[Trust / sponsor details]),0,0),0)) -> Activate Learning Education Trust | P13: GLF
A14: GLF Schools (07551959) | B14: 07551959 | D14: GLF Schools | I14: GLF | M14: =INDEX(Converted[Trust / sponsor details],MATCH(0,INDEX(COUNTIF($M$1:M13,Converted[Trust / sponsor details]),0,0),0)) -> The Pope Francis MAC | P14: The Iffley Academy Trust
A15: Ladygrove Park Primary School (08517429) | B15: 08517429 | D15: Ladygrove Park Primary School | I15: LPPS | M15: =INDEX(Converted[Trust / sponsor details],MATCH(0,INDEX(COUNTIF($M$1:M14,Converted[Trust / sponsor details]),0,0),0)) -> The Gallery Trust | P15: John Mason Academy Trust
A16: Macintyre Academies Trust (08334745) | B16: 08334745 | D16: Macintyre Academies Trust | I16: MAT | M16: =INDEX(Converted[Trust / sponsor details],MATCH(0,INDEX(COUNTIF($M$1:M15,Converted[Trust / sponsor details]),0,0),0)) -> The Warriner Multi Academy Trust | P16: Propeller Academy Trust
A17: Maiden Erlegh Trust (07548754) | B17: 07548754 | D17: Maiden Erlegh Trust | I17: MET
A18: Omnia Learning Trust (08346116) | B18: 08346116 | D18: Omnia Learning Trust | I18: OLT | M18: =INDEX(Converted[Trust / sponsor details],MATCH(0,INDEX(COUNTIF($M$1:M16,Converted[Trust / sponsor details]),0,0),0)) -> Radcliffe Academy Trust | P18: Radcliffe Academy Trust
A19: Oxford Diocesan Schools Trust (08143249) | B19: 08143249 | D19: Oxford Diocesan Schools Trust | I19: ODST | M19: =INDEX(Converted[Trust / sponsor details],MATCH(0,INDEX(COUNTIF($M$1:M18,Converted[Trust / sponsor details]),0,0),0)) -> GLF Schools | P19: River Learning Trust
A20: Radcliffe Academy Trust (09334026) | B20: 09334026 | D20: Radcliffe Academy Trust | I20: RAT | M20: =INDEX(Converted[Trust / sponsor details],MATCH(0,INDEX(COUNTIF($M$1:M19,Converted[Trust / sponsor details]),0,0),0)) -> Abingdon Learning Trust (ALT) | P20: Single converter
A21: Ridgeway Education Trust (8104201) | B21: 8104201 | D21: Ridgeway Education Trust | I21: RET | M21: =INDEX(Converted[Trust / sponsor details],MATCH(0,INDEX(COUNTIF($M$1:M20,Converted[Trust / sponsor details]),0,0),0)) -> Maiden Erlegh Trust | P21: Thame Partnership Academy Trust
A22: River Learning Trust (07966500) | B22: 07966500 | D22: River Learning Trust | I22: RLT | M22: =INDEX(Converted[Trust / sponsor details],MATCH(0,INDEX(COUNTIF($M$1:M21,Converted[Trust / sponsor details]),0,0),0)) -> United Learning Trust (ULT) | P22: The Mill Academy
A23: St John's Academy Trust (008517255) | B23: 008517255 | D23: St John's Academy Trust | I23: SJAT | M23: =INDEX(Converted[Trust / sponsor details],MATCH(0,INDEX(COUNTIF($M$1:M22,Converted[Trust / sponsor details]),0,0),0)) -> The Merchant Taylors Oxfordshire Academy Trust Ltd | P23: The Oxford Diocesan Board of Education,The Beecroft Trust, and Oxford Brookes University
A24: Thame Partnership Academy Trust (8154932) | B24: 8154932 | D24: Thame Partnership Academy Trust | I24: TPAT | M24: =INDEX(Converted[Trust / sponsor details],MATCH(0,INDEX(COUNTIF($M$1:M23,Converted[Trust / sponsor details]),0,0),0)) -> Vale Academy Trust | P24: The Pope Francis MAC
A25: The Circle Trust (11031096) | B25: 11031096 | D25: The Circle Trust | I25: TCT | M25: =INDEX(Converted[Trust / sponsor details],MATCH(0,INDEX(COUNTIF($M$1:M24,Converted[Trust / sponsor details]),0,0),0)) -> The White Horse Federation | P25: The Warriner Multi Academy Trust
A26: The Gallery Trust (8334718) | B26: 8334718 | D26: The Gallery Trust | I26: Gallery | M26: =INDEX(Converted[Trust / sponsor details],MATCH(0,INDEX(COUNTIF($M$1:M25,Converted[Trust / sponsor details]),0,0),0)) -> The Mill Academy | P26: United Learning Trust (ULT)
A27: The Langtree School Academy Trust Company (07980335) | B27: 07980335 | D27: The Langtree School Academy Trust Company | I27: LSATC | M27: =INDEX(Converted[Trust / sponsor details],MATCH(0,INDEX(COUNTIF($M$1:M26,Converted[Trust / sponsor details]),0,0),0)) -> Oxfordshire Primary Education Network (OPEN) | P27: Vale Academy Trust
A28: The Merchant Taylors Oxfordshire Academy Trust Ltd (07727786 ) | B28: 07727786 | D28: The Merchant Taylors Oxfordshire Academy Trust Ltd | I28: MTOAT | M28: =INDEX(Converted[Trust / sponsor details],MATCH(0,INDEX(COUNTIF($M$1:M27,Converted[Trust / sponsor details]),0,0),0)) -> Anthem Schools Trust | P28: West Oxford Schools Trust
A29: The Mill Academy (8060721) | B29: 8060721 | D29: The Mill Academy | I29: Mill | M29: =INDEX(Converted[Trust / sponsor details],MATCH(0,INDEX(COUNTIF($M$1:M28,Converted[Trust / sponsor details]),0,0),0)) -> Aspirations Academy Trust (AAT) | P29: White Horse Federation
A30: The Pope Francis Catholic Multi Academy Company (09113542) | B30: 09113542 | D30: The Pope Francis Catholic Multi Academy Company | I30: PFMAC | M30: =INDEX(Converted[Trust / sponsor details],MATCH(0,INDEX(COUNTIF($M$1:M29,Converted[Trust / sponsor details]),0,0),0)) -> Thame Partnership Academy Trust
A31: The Propeller Academy Trust (8340120) | B31: 8340120 | D31: The Propeller Academy Trust | I31: PAT | M31: =INDEX(Converted[Trust / sponsor details],MATCH(0,INDEX(COUNTIF($M$1:M30,Converted[Trust / sponsor details]),0,0),0)) -> Burford School
A32: The Warriner Multi Academy Trust (9696059) | B32: 9696059 | D32: The Warriner Multi Academy Trust | I32: WMAT | M32: =INDEX(Converted[Trust / sponsor details],MATCH(0,INDEX(COUNTIF($M$1:M31,Converted[Trust / sponsor details]),0,0),0)) -> The Langtree School Academy Trust
A33: The White Horse Federation (08075785) | B33: 08075785 | D33: The White Horse Federation | I33: WHF | M33: =INDEX(Converted[Trust / sponsor details],MATCH(0,INDEX(COUNTIF($M$1:M32,Converted[Trust / sponsor details]),0,0),0)) -> Gillots School
A34: United Learning Trust (04439859) | B34: 04439859 | D34: United Learning Trust | I34: ULT | M34: =INDEX(Converted[Trust / sponsor details],MATCH(0,INDEX(COUNTIF($M$1:M33,Converted[Trust / sponsor details]),0,0),0)) -> 
A35: Vale Academy Trust (07674473) | B35: 07674473 | D35: Vale Academy Trust | I35: VAT | M35: =INDEX(Converted[Trust / sponsor details],MATCH(0,INDEX(COUNTIF($M$1:M34,Converted[Trust / sponsor details]),0,0),0)) -> 
A36: Willowcroft Academy Trust (08516562) | B36: 08516562 | D36: Willowcroft Academy Trust | I36: WAT | M36: =INDEX(Converted[Trust / sponsor details],MATCH(0,INDEX(COUNTIF($M$1:M35,Converted[Trust / sponsor details]),0,0),0)) -> 
A37: REMEMBER TO UPDATE THE LIST USING THE BUTTON BELOW IF YOU ADD A TRUST! | M37: =INDEX(Converted[Trust / sponsor details],MATCH(0,INDEX(COUNTIF($M$1:M36,Converted[Trust / sponsor details]),0,0),0)) -> 
M38: =INDEX(Converted[Trust / sponsor details],MATCH(0,INDEX(COUNTIF($M$1:M37,Converted[Trust / sponsor details]),0,0),0)) -> 
M39: =INDEX(Converted[Trust / sponsor details],MATCH(0,INDEX(COUNTIF($M$1:M38,Converted[Trust / sponsor details]),0,0),0)) -> 
M40: =INDEX(Converted[Trust / sponsor details],MATCH(0,INDEX(COUNTIF($M$1:M39,Converted[Trust / sponsor details]),0,0),0)) -> 
D41: Schools approved as sponsors: | M41: =INDEX(Converted[Trust / sponsor details],MATCH(0,INDEX(COUNTIF($M$1:M40,Converted[Trust / sponsor details]),0,0),0)) -> 
D42: Acer Trust *
D43: Activate Learning Education Trust *
D44: Anthem Schools Trust *
D45: Aspirations Academy Trust (AAT) * | G45: Note: * denotes Trusts that have sponsored schools that have been brokered by DfE
A47: Notes on why button used to update range (see comment) | D47: Eynsham Partnership *
A48: Button doesn't work for distributed version of spreadsheet | D48: Faringdon Learning Trust
D49: Gillotts School
A50: Updating the range extends the range to include A2 to the | D50: GLF Schools (GLF) *
A51: bottom of the list (otherwise, the 'range' would not include all | D51: Macintyre Academy Trust
A52: trusts in the list above. | D52: Maiden Erlegh Trust*
D53: Oxford Diocesan Schools Trust (ODST) *
D54: Pope Francis MAC *
D55: Propeller Academy Trust *
D56: Ridgeway Education Trust
D57: River Learning Trust *
D58: The Gallery Trust*
D59: The Mill Academy
D60: The Warriner Multi Academy Trust
D61: The White Horse Federation*
D62: United Learning Trust (ULT) *
D63: Vale Academy Trust *
D64: Abingdon Learning Trust (applied but no update 5/01/23)
D65: Last Updated January 2023
